Publisher Label,Publisher URI,"Supplier ID","Supplier","Invoice No.","Amount £","Purpose","Transaction Number","Payment Date","Organisational Unit","Cost Centre(T)","Internal Category Number"
"Wolverhampton City Council","http://opendatacommunities.org/id/metropolitan-district-council/wolverhampton","710928","Yoo Recruit LTD","CWC10345258","509.58","Agency Staff","190563988","20/02/2019","Leisure Services","Central Baths","R1100"
"Wolverhampton City Council","http://opendatacommunities.org/id/metropolitan-district-council/wolverhampton","710928","Yoo Recruit LTD","CWC1034996","72.45","Agency Staff","190564641","20/02/2019","Leisure Services","Central Baths","R1100"
"Wolverhampton City Council","http://opendatacommunities.org/id/metropolitan-district-council/wolverhampton","710928","Yoo Recruit LTD","CWC10349334","510.97","Agency Staff","190564879","20/02/2019","The Hub","Payroll/HR","R1100"
"Wolverhampton City Council","http://opendatacommunities.org/id/metropolitan-district-council/wolverhampton","710928","Yoo Recruit LTD","CWC10345396","73.95","Agency Staff","190564126","20/02/2019","Special Educational Needs","Special - Transport","R1100"
"Wolverhampton City Council","http://opendatacommunities.org/id/metropolitan-district-council/wolverhampton","710928","Yoo Recruit LTD","CWC10345221","73.76","Agency Staff","190563951","20/02/2019","Leisure Services","Bert Williams Leisure Centre","R1100"
"Wolverhampton City Council","http://opendatacommunities.org/id/metropolitan-district-council/wolverhampton","710928","Yoo Recruit LTD","CWC1034947","74.82","Agency Staff","190564592","20/02/2019","Local Economy","Global Budgets","R1100"
"Wolverhampton City Council","http://opendatacommunities.org/id/metropolitan-district-council/wolverhampton","710928","Yoo Recruit LTD","CWC10349147","74.76","Agency Staff","190564692","20/02/2019","Cleaning","Cleaning of Buildings - General","R1100"
"Wolverhampton City Council","http://opendatacommunities.org/id/metropolitan-district-council/wolverhampton","710928","Yoo Recruit LTD","CWC10345324","407.40","Agency Staff","190564054","20/02/2019","ICTS","Customer Services","R1100"
"Wolverhampton City Council","http://opendatacommunities.org/id/metropolitan-district-council/wolverhampton","710928","Yoo Recruit LTD","CWC10345222","73.76","Agency Staff","190563952","20/02/2019","Leisure Services","Bert Williams Leisure Centre","R1100"
"Wolverhampton City Council","http://opendatacommunities.org/id/metropolitan-district-council/wolverhampton","710928","Yoo Recruit LTD","CWC10349190","407.40","Agency Staff","190564735","20/02/2019","ICTS","Customer Services","R1100"
"Wolverhampton City Council","http://opendatacommunities.org/id/metropolitan-district-council/wolverhampton","710928","Yoo Recruit LTD","CWC10345391","387.52","Agency Staff","190564121","20/02/2019","School Planning & Resources","Music Support Team","R1100"
"Wolverhampton City Council","http://opendatacommunities.org/id/metropolitan-district-council/wolverhampton","710928","Yoo Recruit LTD","CWC10345209","406.23","Agency Staff","190563939","20/02/2019","Leisure Services","WV Active Catering","R1100"
"Wolverhampton City Council","http://opendatacommunities.org/id/metropolitan-district-council/wolverhampton","710928","Yoo Recruit LTD","CWC10349189","385.99","Agency Staff","190564734","20/02/2019","ICTS","Customer Services","R1100"
"Wolverhampton City Council","http://opendatacommunities.org/id/metropolitan-district-council/wolverhampton","710928","Yoo Recruit LTD","CWC10349274","387.52","Agency Staff","190564819","20/02/2019","School Planning & Resources","Music Support Team","R1100"
"Wolverhampton City Council","http://opendatacommunities.org/id/metropolitan-district-council/wolverhampton","710928","Yoo Recruit LTD","CWC103453","1.80","Agency Staff","190563734","20/02/2019","Children & Young People In Care","Adoption and Residence Team & Allowances","R1100"
"Wolverhampton City Council","http://opendatacommunities.org/id/metropolitan-district-council/wolverhampton","710928","Yoo Recruit LTD","CWC1034582","2.25","Agency Staff","190563813","20/02/2019","Children & Young People In Care","LAC Transitions Team","R1100"
"Wolverhampton City Council","http://opendatacommunities.org/id/metropolitan-district-council/wolverhampton","710928","Yoo Recruit LTD","CWC10345738","11.85","Agency Staff","190564468","20/02/2019","Strengthening Families","MASH","R1100"
"Wolverhampton City Council","http://opendatacommunities.org/id/metropolitan-district-council/wolverhampton","710928","Yoo Recruit LTD","CWC10349265","2.08","Agency Staff","190564810","20/02/2019","School Planning & Resources","Music Support Team","R1100"
"Wolverhampton City Council","http://opendatacommunities.org/id/metropolitan-district-council/wolverhampton","710928","Yoo Recruit LTD","CWC1034579","1.50","Agency Staff","190563810","20/02/2019","Children & Young People In Care","LAC Transitions Team","R1100"
"Wolverhampton City Council","http://opendatacommunities.org/id/metropolitan-district-council/wolverhampton","710928","Yoo Recruit LTD","CWC10345599","1.80","Agency Staff","190564329","20/02/2019","Strengthening Families","CP Area 5-Whitemore Reans","R1100"
"Wolverhampton City Council","http://opendatacommunities.org/id/metropolitan-district-council/wolverhampton","710928","Yoo Recruit LTD","CWC1034580","1.50","Agency Staff","190563811","20/02/2019","Children & Young People In Care","LAC Transitions Team","R1100"
"Wolverhampton City Council","http://opendatacommunities.org/id/metropolitan-district-council/wolverhampton","710928","Yoo Recruit LTD","CWC10345120","28.35","Agency Staff","190563851","20/02/2019","Children & Young People In Care","LAC Transitions Team","R1100"
"Wolverhampton City Council","http://opendatacommunities.org/id/metropolitan-district-council/wolverhampton","710928","Yoo Recruit LTD","CWC10345801","3,238.15","Agency Staff","190564531","20/02/2019","Digital Transformation Programme","Digital Transformation Programme (Recharge to Capital)","R1100"
"Wolverhampton City Council","http://opendatacommunities.org/id/metropolitan-district-council/wolverhampton","710928","Yoo Recruit LTD","CWC10345148","26.10","Agency Staff","190563879","20/02/2019","Children & Young People In Care","Looked After Team 1","R1100"
"Wolverhampton City Council","http://opendatacommunities.org/id/metropolitan-district-council/wolverhampton","710928","Yoo Recruit LTD","CWC10345742","26.10","Agency Staff","190564472","20/02/2019","Strengthening Families","MASH","R1100"
"Wolverhampton City Council","http://opendatacommunities.org/id/metropolitan-district-council/wolverhampton","710928","Yoo Recruit LTD","Consolidated79OR","178,269.49","Agency Staff","190564544","20/02/2019","Central Corporate Budgets","Yoo Recruit Payments","R1100"
"Wolverhampton City Council","http://opendatacommunities.org/id/metropolitan-district-council/wolverhampton","710928","Yoo Recruit LTD","CWC1034573","-2.70","Agency Staff","190563804","20/02/2019","Children & Young People In Care","LAC Transitions Team","R1100"
"Wolverhampton City Council","http://opendatacommunities.org/id/metropolitan-district-council/wolverhampton","710928","Yoo Recruit LTD","CWC1034572","-3.00","Agency Staff","190563803","20/02/2019","Children & Young People In Care","LAC Transitions Team","R1100"
"Wolverhampton City Council","http://opendatacommunities.org/id/metropolitan-district-council/wolverhampton","710928","Yoo Recruit LTD","CWC10349401","13.50","Agency Staff","190564946","20/02/2019","Adults Assessment & Care Management West","Adult Services � West","R1100"
"Wolverhampton City Council","http://opendatacommunities.org/id/metropolitan-district-council/wolverhampton","710928","Yoo Recruit LTD","CWC10349420","3,238.15","Agency Staff","190564965","20/02/2019","Digital Transformation Programme","Digital Transformation Programme (Recharge to Capital)","R1100"
"Wolverhampton City Council","http://opendatacommunities.org/id/metropolitan-district-council/wolverhampton","710928","Yoo Recruit LTD","CWC10345265","122.22","Agency Staff","190563995","20/02/2019","Customer Services","City Direct","R1100"
"Wolverhampton City Council","http://opendatacommunities.org/id/metropolitan-district-council/wolverhampton","710928","Yoo Recruit LTD","CWC10345291","122.20","Agency Staff","190564021","20/02/2019","Cleaning","Cleaning of Buildings - General","R1100"
"Wolverhampton City Council","http://opendatacommunities.org/id/metropolitan-district-council/wolverhampton","710928","Yoo Recruit LTD","CWC10353406","27.55","Agency Staff","190566930","27/02/2019","Leisure Services","WV Active Business Support","R1100"
"Wolverhampton City Council","http://opendatacommunities.org/id/metropolitan-district-council/wolverhampton","710928","Yoo Recruit LTD","CWC10353407","28.13","Agency Staff","190566931","27/02/2019","Leisure Services","WV Active Business Support","R1100"
"Wolverhampton City Council","http://opendatacommunities.org/id/metropolitan-district-council/wolverhampton","710928","Yoo Recruit LTD","CWC10353405","27.36","Agency Staff","190566929","27/02/2019","Leisure Services","WV Active Business Support","R1100"
"Wolverhampton City Council","http://opendatacommunities.org/id/metropolitan-district-council/wolverhampton","710928","Yoo Recruit LTD","CWC10345292","122.20","Agency Staff","190564022","20/02/2019","Cleaning","Cleaning of Buildings - General","R1100"
"Wolverhampton City Council","http://opendatacommunities.org/id/metropolitan-district-council/wolverhampton","710928","Yoo Recruit LTD","CWC10345293","122.20","Agency Staff","190564023","20/02/2019","Cleaning","Cleaning of Buildings - General","R1100"
"Wolverhampton City Council","http://opendatacommunities.org/id/metropolitan-district-council/wolverhampton","710928","Yoo Recruit LTD","CWC10349154","122.20","Agency Staff","190564699","20/02/2019","Cleaning","Cleaning of Buildings - General","R1100"
"Wolverhampton City Council","http://opendatacommunities.org/id/metropolitan-district-council/wolverhampton","710928","Yoo Recruit LTD","CWC10349155","122.20","Agency Staff","190564700","20/02/2019","Cleaning","Cleaning of Buildings - General","R1100"
"Wolverhampton City Council","http://opendatacommunities.org/id/metropolitan-district-council/wolverhampton","710928","Yoo Recruit LTD","CWC10345340","1,136.85","Agency Staff","190564070","20/02/2019","Waste and Recycling Service","Waste Collection and Recycling Service - General","R1100"
"Wolverhampton City Council","http://opendatacommunities.org/id/metropolitan-district-council/wolverhampton","710928","Yoo Recruit LTD","CWC10345473","1,214.71","Agency Staff","190564203","20/02/2019","Strengthening Families","CP Area 4- Bingley","R1100"
"Wolverhampton City Council","http://opendatacommunities.org/id/metropolitan-district-council/wolverhampton","710928","Yoo Recruit LTD","CWC10345474","1,214.71","Agency Staff","190564204","20/02/2019","Strengthening Families","CP Area 4- Bingley","R1100"
"Wolverhampton City Council","http://opendatacommunities.org/id/metropolitan-district-council/wolverhampton","710928","Yoo Recruit LTD","CWC10345205","110.79","Agency Staff","190563935","20/02/2019","Leisure Services","WV Active Catering","R1100"
"Wolverhampton City Council","http://opendatacommunities.org/id/metropolitan-district-council/wolverhampton","710928","Yoo Recruit LTD","CWC10345503","-744.26","Agency Staff","190564233","20/02/2019","Strengthening Families","CP Area 5-Whitemore Reans","R1100"
"Wolverhampton City Council","http://opendatacommunities.org/id/metropolitan-district-council/wolverhampton","710928","Yoo Recruit LTD","CWC10345502","-761.18","Agency Staff","190564232","20/02/2019","Strengthening Families","CP Area 5-Whitemore Reans","R1100"
"Wolverhampton City Council","http://opendatacommunities.org/id/metropolitan-district-council/wolverhampton","710928","Yoo Recruit LTD","CWC1034523","-761.18","Agency Staff","190563754","20/02/2019","Children & Young People In Care","LAC Transitions Team","R1100"
"Wolverhampton City Council","http://opendatacommunities.org/id/metropolitan-district-council/wolverhampton","710928","Yoo Recruit LTD","CWC1034960","110.79","Agency Staff","190564605","20/02/2019","Leisure Services","WV Active Catering","R1100"
"Wolverhampton City Council","http://opendatacommunities.org/id/metropolitan-district-council/wolverhampton","710928","Yoo Recruit LTD","CWC10345731","-781.00","Agency Staff","190564461","20/02/2019","Strengthening Families","MASH","R1100"
"Wolverhampton City Council","http://opendatacommunities.org/id/metropolitan-district-council/wolverhampton","710928","Yoo Recruit LTD","CWC10349151","112.14","Agency Staff","190564696","20/02/2019","Cleaning","Cleaning of Buildings - General","R1100"
"Wolverhampton City Council","http://opendatacommunities.org/id/metropolitan-district-council/wolverhampton","710928","Yoo Recruit LTD","CWC10349152","112.14","Agency Staff","190564697","20/02/2019","Cleaning","Cleaning of Buildings - General","R1100"
"Wolverhampton City Council","http://opendatacommunities.org/id/metropolitan-district-council/wolverhampton","710928","Yoo Recruit LTD","CWC10349431","112.14","Agency Staff","190564976","20/02/2019","Visitor Economy","VEC - Casual & Agency Staff","R1100"
"Wolverhampton City Council","http://opendatacommunities.org/id/metropolitan-district-council/wolverhampton","710928","Yoo Recruit LTD","CWC1034522","-997.99","Agency Staff","190563753","20/02/2019","Children & Young People In Care","LAC Transitions Team","R1100"
"Wolverhampton City Council","http://opendatacommunities.org/id/metropolitan-district-council/wolverhampton","710928","Yoo Recruit LTD","CWC10345168","111.05","Agency Staff","190563898","20/02/2019","Emergency Duty Team","Emergency Duty Team","R1100"
"Wolverhampton City Council","http://opendatacommunities.org/id/metropolitan-district-council/wolverhampton","710928","Yoo Recruit LTD","CWC1034943","1,083.39","Agency Staff","190564588","20/02/2019","Mental Health Assesment & Care Management","Mental Health Assessment & Care Management","R1100"
"Wolverhampton City Council","http://opendatacommunities.org/id/metropolitan-district-council/wolverhampton","710928","Yoo Recruit LTD","CWC1034948","111.24","Agency Staff","190564593","20/02/2019","Local Economy","Global Budgets","R1100"
"Wolverhampton City Council","http://opendatacommunities.org/id/metropolitan-district-council/wolverhampton","710928","Yoo Recruit LTD","CWC10345500","-1,014.90","Agency Staff","190564230","20/02/2019","Strengthening Families","CP Area 5-Whitemore Reans","R1100"
"Wolverhampton City Council","http://opendatacommunities.org/id/metropolitan-district-council/wolverhampton","710928","Yoo Recruit LTD","CWC10345501","-1,014.90","Agency Staff","190564231","20/02/2019","Strengthening Families","CP Area 5-Whitemore Reans","R1100"
"Wolverhampton City Council","http://opendatacommunities.org/id/metropolitan-district-council/wolverhampton","710928","Yoo Recruit LTD","CWC10345730","-1,047.25","Agency Staff","190564460","20/02/2019","Strengthening Families","MASH","R1100"
"Wolverhampton City Council","http://opendatacommunities.org/id/metropolitan-district-council/wolverhampton","710928","Yoo Recruit LTD","CWC10349213","1,100.84","Agency Staff","190564758","20/02/2019","Revenues & Benefits","Revenues","R1100"
"Wolverhampton City Council","http://opendatacommunities.org/id/metropolitan-district-council/wolverhampton","710928","Yoo Recruit LTD","CWC10345350","1,150.46","Agency Staff","190564080","20/02/2019","Housing","Housing Regeneration - Strategy & Development","R1100"
"Wolverhampton City Council","http://opendatacommunities.org/id/metropolitan-district-council/wolverhampton","710928","Yoo Recruit LTD","CWC10345448","1,147.08","Agency Staff","190564178","20/02/2019","Human Resources","HR Investigations","R1100"
"Wolverhampton City Council","http://opendatacommunities.org/id/metropolitan-district-council/wolverhampton","710928","Yoo Recruit LTD","CWC10345455","1,132.64","Agency Staff","190564185","20/02/2019","Strengthening Families","CP Area 2 - Bilston/Rocket Pool","R1100"
"Wolverhampton City Council","http://opendatacommunities.org/id/metropolitan-district-council/wolverhampton","710928","Yoo Recruit LTD","CWC1034956","1,132.64","Agency Staff","190564601","20/02/2019","Adults Assessment & Care Management East","Hospital Team","R1100"
"Wolverhampton City Council","http://opendatacommunities.org/id/metropolitan-district-council/wolverhampton","710928","Yoo Recruit LTD","CWC10345187","1,141.36","Agency Staff","190563917","20/02/2019","Mental Health Assesment & Care Management","Mental Health Assessment & Care Management","R1100"
"Wolverhampton City Council","http://opendatacommunities.org/id/metropolitan-district-council/wolverhampton","710928","Yoo Recruit LTD","CWC10345771","1,143.30","Agency Staff","190564501","20/02/2019","Adults Assessment & Care Management North","Adult Services � North","R1100"
"Wolverhampton City Council","http://opendatacommunities.org/id/metropolitan-district-council/wolverhampton","710928","Yoo Recruit LTD","CWC10349399","1,143.30","Agency Staff","190564944","20/02/2019","Adults Assessment & Care Management North","Adult Services � North","R1100"
"Wolverhampton City Council","http://opendatacommunities.org/id/metropolitan-district-council/wolverhampton","710928","Yoo Recruit LTD","CWC10349408","1,140.84","Agency Staff","190564953","20/02/2019","Adults Assessment & Care Management SLC","Supporting Life Choices","R1100"
"Wolverhampton City Council","http://opendatacommunities.org/id/metropolitan-district-council/wolverhampton","710928","Yoo Recruit LTD","CWC10345491","-1,251.71","Agency Staff","190564221","20/02/2019","Strengthening Families","CP Area 5-Whitemore Reans","R1100"
"Wolverhampton City Council","http://opendatacommunities.org/id/metropolitan-district-council/wolverhampton","710928","Yoo Recruit LTD","CWC10345492","-1,251.71","Agency Staff","190564222","20/02/2019","Strengthening Families","CP Area 5-Whitemore Reans","R1100"
"Wolverhampton City Council","http://opendatacommunities.org/id/metropolitan-district-council/wolverhampton","710928","Yoo Recruit LTD","CWC10345493","-1,251.71","Agency Staff","190564223","20/02/2019","Strengthening Families","CP Area 5-Whitemore Reans","R1100"
"Wolverhampton City Council","http://opendatacommunities.org/id/metropolitan-district-council/wolverhampton","710928","Yoo Recruit LTD","CWC10345494","-1,251.71","Agency Staff","190564224","20/02/2019","Strengthening Families","CP Area 5-Whitemore Reans","R1100"
"Wolverhampton City Council","http://opendatacommunities.org/id/metropolitan-district-council/wolverhampton","710928","Yoo Recruit LTD","CWC10345495","-1,251.71","Agency Staff","190564225","20/02/2019","Strengthening Families","CP Area 5-Whitemore Reans","R1100"
"Wolverhampton City Council","http://opendatacommunities.org/id/metropolitan-district-council/wolverhampton","710928","Yoo Recruit LTD","CWC10345496","-1,251.71","Agency Staff","190564226","20/02/2019","Strengthening Families","CP Area 5-Whitemore Reans","R1100"
"Wolverhampton City Council","http://opendatacommunities.org/id/metropolitan-district-council/wolverhampton","710928","Yoo Recruit LTD","CWC10345727","-1,313.50","Agency Staff","190564457","20/02/2019","Strengthening Families","MASH","R1100"
"Wolverhampton City Council","http://opendatacommunities.org/id/metropolitan-district-council/wolverhampton","710928","Yoo Recruit LTD","CWC10345726","-1,313.50","Agency Staff","190564456","20/02/2019","Strengthening Families","MASH","R1100"
"Wolverhampton City Council","http://opendatacommunities.org/id/metropolitan-district-council/wolverhampton","710928","Yoo Recruit LTD","CWC10345383","99.28","Agency Staff","190564113","20/02/2019","Adult Education","Learner Services","R1100"
"Wolverhampton City Council","http://opendatacommunities.org/id/metropolitan-district-council/wolverhampton","710928","Yoo Recruit LTD","CWC10345729","-1,313.50","Agency Staff","190564459","20/02/2019","Strengthening Families","MASH","R1100"
"Wolverhampton City Council","http://opendatacommunities.org/id/metropolitan-district-council/wolverhampton","710928","Yoo Recruit LTD","CWC10345728","-1,313.50","Agency Staff","190564458","20/02/2019","Strengthening Families","MASH","R1100"
"Wolverhampton City Council","http://opendatacommunities.org/id/metropolitan-district-council/wolverhampton","710928","Yoo Recruit LTD","CWC1034979","98.48","Agency Staff","190564624","20/02/2019","Leisure Services","Bert Williams Leisure Centre","R1100"
"Wolverhampton City Council","http://opendatacommunities.org/id/metropolitan-district-council/wolverhampton","710928","Yoo Recruit LTD","CWC10345289","97.76","Agency Staff","190564019","20/02/2019","Cleaning","Cleaning of Buildings - General","R1100"
"Wolverhampton City Council","http://opendatacommunities.org/id/metropolitan-district-council/wolverhampton","710928","Yoo Recruit LTD","CWC1034515","-1,251.71","Agency Staff","190563746","20/02/2019","Children & Young People In Care","LAC Transitions Team","R1100"
"Wolverhampton City Council","http://opendatacommunities.org/id/metropolitan-district-council/wolverhampton","710928","Yoo Recruit LTD","CWC1034516","-1,251.71","Agency Staff","190563747","20/02/2019","Children & Young People In Care","LAC Transitions Team","R1100"
"Wolverhampton City Council","http://opendatacommunities.org/id/metropolitan-district-council/wolverhampton","710928","Yoo Recruit LTD","CWC1034517","-1,251.71","Agency Staff","190563748","20/02/2019","Children & Young People In Care","LAC Transitions Team","R1100"
"Wolverhampton City Council","http://opendatacommunities.org/id/metropolitan-district-council/wolverhampton","710928","Yoo Recruit LTD","CWC1034518","-1,251.71","Agency Staff","190563749","20/02/2019","Children & Young People In Care","LAC Transitions Team","R1100"
"Wolverhampton City Council","http://opendatacommunities.org/id/metropolitan-district-council/wolverhampton","710928","Yoo Recruit LTD","CWC1034519","-1,251.71","Agency Staff","190563750","20/02/2019","Children & Young People In Care","LAC Transitions Team","R1100"
"Wolverhampton City Council","http://opendatacommunities.org/id/metropolitan-district-council/wolverhampton","710928","Yoo Recruit LTD","CWC1034520","-1,251.71","Agency Staff","190563751","20/02/2019","Children & Young People In Care","LAC Transitions Team","R1100"
"Wolverhampton City Council","http://opendatacommunities.org/id/metropolitan-district-council/wolverhampton","710928","Yoo Recruit LTD","CWC1034521","-1,251.71","Agency Staff","190563752","20/02/2019","Children & Young People In Care","LAC Transitions Team","R1100"
"Wolverhampton City Council","http://opendatacommunities.org/id/metropolitan-district-council/wolverhampton","710928","Yoo Recruit LTD","CWC10345433","113.92","Agency Staff","190564163","20/02/2019","Leisure Services","WV Active Business Support","R1100"
"Wolverhampton City Council","http://opendatacommunities.org/id/metropolitan-district-council/wolverhampton","710928","Yoo Recruit LTD","CWC10345476","-1,251.71","Agency Staff","190564206","20/02/2019","Strengthening Families","CP Area 5-Whitemore Reans","R1100"
"Wolverhampton City Council","http://opendatacommunities.org/id/metropolitan-district-council/wolverhampton","710928","Yoo Recruit LTD","CWC10345477","-1,251.71","Agency Staff","190564207","20/02/2019","Strengthening Families","CP Area 5-Whitemore Reans","R1100"
"Wolverhampton City Council","http://opendatacommunities.org/id/metropolitan-district-council/wolverhampton","710928","Yoo Recruit LTD","CWC10349315","113.92","Agency Staff","190564860","20/02/2019","Leisure Services","WV Active Business Support","R1100"
"Wolverhampton City Council","http://opendatacommunities.org/id/metropolitan-district-council/wolverhampton","710928","Yoo Recruit LTD","CWC10345432","112.52","Agency Staff","190564162","20/02/2019","Leisure Services","WV Active Business Support","R1100"
"Wolverhampton City Council","http://opendatacommunities.org/id/metropolitan-district-council/wolverhampton","710928","Yoo Recruit LTD","CWC10345489","-1,251.71","Agency Staff","190564219","20/02/2019","Strengthening Families","CP Area 5-Whitemore Reans","R1100"
"Wolverhampton City Council","http://opendatacommunities.org/id/metropolitan-district-council/wolverhampton","710928","Yoo Recruit LTD","CWC10345490","-1,251.71","Agency Staff","190564220","20/02/2019","Strengthening Families","CP Area 5-Whitemore Reans","R1100"
"Wolverhampton City Council","http://opendatacommunities.org/id/metropolitan-district-council/wolverhampton","710928","Yoo Recruit LTD","CWC10345223","113.31","Agency Staff","190563953","20/02/2019","Leisure Services","Bert Williams Leisure Centre","R1100"
"Wolverhampton City Council","http://opendatacommunities.org/id/metropolitan-district-council/wolverhampton","710928","Yoo Recruit LTD","CWC10345264","119.97","Agency Staff","190563994","20/02/2019","Customer Services","City Direct","R1100"
"Wolverhampton City Council","http://opendatacommunities.org/id/metropolitan-district-council/wolverhampton","710928","Yoo Recruit LTD","CWC10349282","122.17","Agency Staff","190564827","20/02/2019","Special Educational Needs","Special - Transport","R1100"
"Wolverhampton City Council","http://opendatacommunities.org/id/metropolitan-district-council/wolverhampton","710928","Yoo Recruit LTD","CWC10349313","112.52","Agency Staff","190564858","20/02/2019","Leisure Services","WV Active Business Support","R1100"
"Wolverhampton City Council","http://opendatacommunities.org/id/metropolitan-district-council/wolverhampton","710928","Yoo Recruit LTD","CWC10349314","112.52","Agency Staff","190564859","20/02/2019","Leisure Services","WV Active Business Support","R1100"
"Wolverhampton City Council","http://opendatacommunities.org/id/metropolitan-district-council/wolverhampton","710928","Yoo Recruit LTD","CWC10345290","119.15","Agency Staff","190564020","20/02/2019","Cleaning","Cleaning of Buildings - General","R1100"
"Wolverhampton City Council","http://opendatacommunities.org/id/metropolitan-district-council/wolverhampton","710928","Yoo Recruit LTD","CWC10345206","123.10","Agency Staff","190563936","20/02/2019","Leisure Services","WV Active Catering","R1100"
"Wolverhampton City Council","http://opendatacommunities.org/id/metropolitan-district-council/wolverhampton","710928","Yoo Recruit LTD","CWC10345215","123.20","Agency Staff","190563945","20/02/2019","Leisure Services","Aldersley Leisure Village","R1100"
"Wolverhampton City Council","http://opendatacommunities.org/id/metropolitan-district-council/wolverhampton","710928","Yoo Recruit LTD","CWC1034919","123.45","Agency Staff","190564564","20/02/2019","Learning Disability Provider","Duke Street Bungalows","R1100"
"Wolverhampton City Council","http://opendatacommunities.org/id/metropolitan-district-council/wolverhampton","710928","Yoo Recruit LTD","CWC10345352","1,168.50","Agency Staff","190564082","20/02/2019","City Development","City Development  - Core Team","R1100"
"Wolverhampton City Council","http://opendatacommunities.org/id/metropolitan-district-council/wolverhampton","710928","Yoo Recruit LTD","CWC1034932","1,176.00","Agency Staff","190564577","20/02/2019","Emergency Duty Team","Emergency Duty Team","R1100"
"Wolverhampton City Council","http://opendatacommunities.org/id/metropolitan-district-council/wolverhampton","710928","Yoo Recruit LTD","CWC10349102","119.79","Agency Staff","190564647","20/02/2019","Leisure Services","Central Baths","R1100"
"Wolverhampton City Council","http://opendatacommunities.org/id/metropolitan-district-council/wolverhampton","710928","Yoo Recruit LTD","CWC10349153","119.15","Agency Staff","190564698","20/02/2019","Cleaning","Cleaning of Buildings - General","R1100"
"Wolverhampton City Council","http://opendatacommunities.org/id/metropolitan-district-council/wolverhampton","710928","Yoo Recruit LTD","CWC10345353","1,168.50","Agency Staff","190564083","20/02/2019","City Development","City Development  - Core Team","R1100"
"Wolverhampton City Council","http://opendatacommunities.org/id/metropolitan-district-council/wolverhampton","710928","Yoo Recruit LTD","CWC10345356","1,168.50","Agency Staff","190564086","20/02/2019","Licensing","Licensing - General","R1100"
"Wolverhampton City Council","http://opendatacommunities.org/id/metropolitan-district-council/wolverhampton","710928","Yoo Recruit LTD","CWC10345698","1,187.55","Agency Staff","190564428","20/02/2019","Strengthening Families","CP Area 5-Whitemore Reans","R1100"
"Wolverhampton City Council","http://opendatacommunities.org/id/metropolitan-district-council/wolverhampton","710928","Yoo Recruit LTD","CWC10345199","1,186.45","Agency Staff","190563929","20/02/2019","Independent Living Service","Independent Living Service","R1100"
"Wolverhampton City Council","http://opendatacommunities.org/id/metropolitan-district-council/wolverhampton","710928","Yoo Recruit LTD","CWC10345154","1,193.01","Agency Staff","190563885","20/02/2019","Youth Offending","Youth Offending Team","R1100"
"Wolverhampton City Council","http://opendatacommunities.org/id/metropolitan-district-council/wolverhampton","710928","Yoo Recruit LTD","CWC10349224","1,178.52","Agency Staff","190564769","20/02/2019","Housing","Housing Regeneration - Strategy & Development","R1100"
"Wolverhampton City Council","http://opendatacommunities.org/id/metropolitan-district-council/wolverhampton","710928","Yoo Recruit LTD","CWC10349281","118.96","Agency Staff","190564826","20/02/2019","Special Educational Needs","Special - Transport","R1100"
"Wolverhampton City Council","http://opendatacommunities.org/id/metropolitan-district-council/wolverhampton","710928","Yoo Recruit LTD","CWC10349409","1,182.25","Agency Staff","190564954","20/02/2019","Adults Assessment & Care Management SLC","Supporting Life Choices","R1100"
"Wolverhampton City Council","http://opendatacommunities.org/id/metropolitan-district-council/wolverhampton","710928","Yoo Recruit LTD","CWC10345360","122.10","Agency Staff","190564090","20/02/2019","Adult Education","Site Services","R1100"
"Wolverhampton City Council","http://opendatacommunities.org/id/metropolitan-district-council/wolverhampton","710928","Yoo Recruit LTD","CWC10345361","122.10","Agency Staff","190564091","20/02/2019","Adult Education","Site Services","R1100"
"Wolverhampton City Council","http://opendatacommunities.org/id/metropolitan-district-council/wolverhampton","710928","Yoo Recruit LTD","CWC10345399","122.10","Agency Staff","190564129","20/02/2019","Special Educational Needs","Special - Transport","R1100"
"Wolverhampton City Council","http://opendatacommunities.org/id/metropolitan-district-council/wolverhampton","710928","Yoo Recruit LTD","CWC1034914","1,193.01","Agency Staff","190564559","20/02/2019","Youth Offending","Youth Offending Team","R1100"
"Wolverhampton City Council","http://opendatacommunities.org/id/metropolitan-district-council/wolverhampton","710928","Yoo Recruit LTD","CWC10345802","839.22","Agency Staff","190564532","20/02/2019","Safeguarding","Safeguarding Partnership Board","R1100"
"Wolverhampton City Council","http://opendatacommunities.org/id/metropolitan-district-council/wolverhampton","710928","Yoo Recruit LTD","CWC10345331","97.68","Agency Staff","190564061","20/02/2019","Transportation","Passenger Transport - General","R1100"
"Wolverhampton City Council","http://opendatacommunities.org/id/metropolitan-district-council/wolverhampton","710928","Yoo Recruit LTD","Consolidated79RD","-178,269.49","Agency Staff","190564545","20/02/2019","Central Corporate Budgets","Yoo Recruit Payments","R1100"
"Wolverhampton City Council","http://opendatacommunities.org/id/metropolitan-district-council/wolverhampton","710928","Yoo Recruit LTD","CWC10349331","851.62","Agency Staff","190564876","20/02/2019","Human Resources","HR Investigations","R1100"
"Wolverhampton City Council","http://opendatacommunities.org/id/metropolitan-district-council/wolverhampton","710928","Yoo Recruit LTD","CWC10345803","839.22","Agency Staff","190564533","20/02/2019","Safeguarding","Safeguarding Partnership Board","R1100"
"Wolverhampton City Council","http://opendatacommunities.org/id/metropolitan-district-council/wolverhampton","710928","Yoo Recruit LTD","CWC10345464","70.50","Agency Staff","190564194","20/02/2019","Strengthening Families","CP Area 3 - Graiseley","R1100"
"Wolverhampton City Council","http://opendatacommunities.org/id/metropolitan-district-council/wolverhampton","710928","Yoo Recruit LTD","CWC10345754","839.00","Agency Staff","190564484","20/02/2019","Digital Transformation Programme","Digital Transformation Programme","R1100"
"Wolverhampton City Council","http://opendatacommunities.org/id/metropolitan-district-council/wolverhampton","710928","Yoo Recruit LTD","CWC10349244","71.38","Agency Staff","190564789","20/02/2019","Adult Education","Continuing Education","R1100"
"Wolverhampton City Council","http://opendatacommunities.org/id/metropolitan-district-council/wolverhampton","710928","Yoo Recruit LTD","CWC10345286","61.10","Agency Staff","190564016","20/02/2019","Cleaning","Cleaning of Buildings - General","R1100"
"Wolverhampton City Council","http://opendatacommunities.org/id/metropolitan-district-council/wolverhampton","710928","Yoo Recruit LTD","CWC10345807","61.05","Agency Staff","190564537","20/02/2019","Visitor Economy","VEC - Casual & Agency Staff","R1100"
"Wolverhampton City Council","http://opendatacommunities.org/id/metropolitan-district-council/wolverhampton","710928","Yoo Recruit LTD","CWC1034973","54.72","Agency Staff","190564618","20/02/2019","Leisure Services","Bert Williams Leisure Centre","R1100"
"Wolverhampton City Council","http://opendatacommunities.org/id/metropolitan-district-council/wolverhampton","710928","Yoo Recruit LTD","CWC1034967","63.30","Agency Staff","190564612","20/02/2019","Leisure Services","Aldersley Leisure Village","R1100"
"Wolverhampton City Council","http://opendatacommunities.org/id/metropolitan-district-council/wolverhampton","710928","Yoo Recruit LTD","CWC10345234","326.22","Agency Staff","190563964","20/02/2019","Leisure Services","Bert Williams Leisure Centre","R1100"
"Wolverhampton City Council","http://opendatacommunities.org/id/metropolitan-district-council/wolverhampton","710928","Yoo Recruit LTD","CWC1034970","323.40","Agency Staff","190564615","20/02/2019","Leisure Services","Aldersley Leisure Village","R1100"
"Wolverhampton City Council","http://opendatacommunities.org/id/metropolitan-district-council/wolverhampton","710928","Yoo Recruit LTD","CWC10349112","324.90","Agency Staff","190564657","20/02/2019","Leisure Services","Central Baths","R1100"
"Wolverhampton City Council","http://opendatacommunities.org/id/metropolitan-district-council/wolverhampton","710928","Yoo Recruit LTD","CWC10349187","53.32","Agency Staff","190564732","20/02/2019","Public Service Reform","Mayoral Expenses","R1100"
"Wolverhampton City Council","http://opendatacommunities.org/id/metropolitan-district-council/wolverhampton","710928","Yoo Recruit LTD","CWC10345316","342.16","Agency Staff","190564046","20/02/2019","Cleaning","Cleaning of Buildings - General","R1100"
"Wolverhampton City Council","http://opendatacommunities.org/id/metropolitan-district-council/wolverhampton","710928","Yoo Recruit LTD","CWC10345338","331.02","Agency Staff","190564068","20/02/2019","Markets","Shopmobility","R1100"
"Wolverhampton City Council","http://opendatacommunities.org/id/metropolitan-district-council/wolverhampton","710928","Yoo Recruit LTD","CWC10349324","328.32","Agency Staff","190564869","20/02/2019","Leisure Services","WV Active Business Support","R1100"
"Wolverhampton City Council","http://opendatacommunities.org/id/metropolitan-district-council/wolverhampton","710928","Yoo Recruit LTD","CWC10349338","12.15","Agency Staff","190564883","20/02/2019","Strengthening Families","CP Area 3 - Graiseley","R1100"
"Wolverhampton City Council","http://opendatacommunities.org/id/metropolitan-district-council/wolverhampton","710928","Yoo Recruit LTD","CWC10345208","332.37","Agency Staff","190563938","20/02/2019","Leisure Services","WV Active Catering","R1100"
"Wolverhampton City Council","http://opendatacommunities.org/id/metropolitan-district-council/wolverhampton","710928","Yoo Recruit LTD","CWC10349179","341.88","Agency Staff","190564724","20/02/2019","Cleaning","External Cleaning","R1100"
"Wolverhampton City Council","http://opendatacommunities.org/id/metropolitan-district-council/wolverhampton","710928","Yoo Recruit LTD","CWC10349180","341.88","Agency Staff","190564725","20/02/2019","Cleaning","External Cleaning","R1100"
"Wolverhampton City Council","http://opendatacommunities.org/id/metropolitan-district-council/wolverhampton","710928","Yoo Recruit LTD","CWC10349325","337.56","Agency Staff","190564870","20/02/2019","Leisure Services","WV Active Business Support","R1100"
"Wolverhampton City Council","http://opendatacommunities.org/id/metropolitan-district-council/wolverhampton","710928","Yoo Recruit LTD","CWC10345389","346.75","Agency Staff","190564119","20/02/2019","School Planning & Resources","Music Support Team","R1100"
"Wolverhampton City Council","http://opendatacommunities.org/id/metropolitan-district-council/wolverhampton","710928","Yoo Recruit LTD","CWC10345111","14.85","Agency Staff","190563842","20/02/2019","Children & Young People In Care","LAC Transitions Team","R1100"
"Wolverhampton City Council","http://opendatacommunities.org/id/metropolitan-district-council/wolverhampton","710928","Yoo Recruit LTD","CWC10345688","23.50","Agency Staff","190564418","20/02/2019","Strengthening Families","CP Area 5-Whitemore Reans","R1100"
"Wolverhampton City Council","http://opendatacommunities.org/id/metropolitan-district-council/wolverhampton","710928","Yoo Recruit LTD","CWC10345792","24.62","Agency Staff","190564522","20/02/2019","Leisure Services","WV Active Catering - Central","R1100"
"Wolverhampton City Council","http://opendatacommunities.org/id/metropolitan-district-council/wolverhampton","710928","Yoo Recruit LTD","CWC10345104","9.90","Agency Staff","190563835","20/02/2019","Children & Young People In Care","LAC Transitions Team","R1100"
"Wolverhampton City Council","http://opendatacommunities.org/id/metropolitan-district-council/wolverhampton","710928","Yoo Recruit LTD","CWC10345680","13.95","Agency Staff","190564410","20/02/2019","Strengthening Families","CP Area 5-Whitemore Reans","R1100"
"Wolverhampton City Council","http://opendatacommunities.org/id/metropolitan-district-council/wolverhampton","710928","Yoo Recruit LTD","CWC10345682","14.40","Agency Staff","190564412","20/02/2019","Strengthening Families","CP Area 5-Whitemore Reans","R1100"
"Wolverhampton City Council","http://opendatacommunities.org/id/metropolitan-district-council/wolverhampton","710928","Yoo Recruit LTD","CWC10345670","9.90","Agency Staff","190564400","20/02/2019","Strengthening Families","CP Area 5-Whitemore Reans","R1100"
"Wolverhampton City Council","http://opendatacommunities.org/id/metropolitan-district-council/wolverhampton","710928","Yoo Recruit LTD","CWC10345463","13.50","Agency Staff","190564193","20/02/2019","Strengthening Families","CP Area 3 - Graiseley","R1100"
"Wolverhampton City Council","http://opendatacommunities.org/id/metropolitan-district-council/wolverhampton","710928","Yoo Recruit LTD","CWC10345110","13.50","Agency Staff","190563841","20/02/2019","Children & Young People In Care","LAC Transitions Team","R1100"
"Wolverhampton City Council","http://opendatacommunities.org/id/metropolitan-district-council/wolverhampton","710928","Yoo Recruit LTD","CWC10345681","13.95","Agency Staff","190564411","20/02/2019","Strengthening Families","CP Area 5-Whitemore Reans","R1100"
"Wolverhampton City Council","http://opendatacommunities.org/id/metropolitan-district-council/wolverhampton","710928","Yoo Recruit LTD","CWC10345679","13.50","Agency Staff","190564409","20/02/2019","Strengthening Families","CP Area 5-Whitemore Reans","R1100"
"Wolverhampton City Council","http://opendatacommunities.org/id/metropolitan-district-council/wolverhampton","710928","Yoo Recruit LTD","CWC10345522","-11.70","Agency Staff","190564252","20/02/2019","Strengthening Families","CP Area 5-Whitemore Reans","R1100"
"Wolverhampton City Council","http://opendatacommunities.org/id/metropolitan-district-council/wolverhampton","710928","Yoo Recruit LTD","CWC1034594","5.40","Agency Staff","190563825","20/02/2019","Children & Young People In Care","LAC Transitions Team","R1100"
"Wolverhampton City Council","http://opendatacommunities.org/id/metropolitan-district-council/wolverhampton","710928","Yoo Recruit LTD","CWC10345643","5.40","Agency Staff","190564373","20/02/2019","Strengthening Families","CP Area 5-Whitemore Reans","R1100"
"Wolverhampton City Council","http://opendatacommunities.org/id/metropolitan-district-council/wolverhampton","710928","Yoo Recruit LTD","CWC10345781","5.40","Agency Staff","190564511","20/02/2019","Adults Assessment & Care Management SLC","Supporting Life Choices","R1100"
"Wolverhampton City Council","http://opendatacommunities.org/id/metropolitan-district-council/wolverhampton","710928","Yoo Recruit LTD","CWC10345519","-12.60","Agency Staff","190564249","20/02/2019","Strengthening Families","CP Area 5-Whitemore Reans","R1100"
"Wolverhampton City Council","http://opendatacommunities.org/id/metropolitan-district-council/wolverhampton","710928","Yoo Recruit LTD","CWC10345520","-12.60","Agency Staff","190564250","20/02/2019","Strengthening Families","CP Area 5-Whitemore Reans","R1100"
"Wolverhampton City Council","http://opendatacommunities.org/id/metropolitan-district-council/wolverhampton","710928","Yoo Recruit LTD","CWC10345521","-12.60","Agency Staff","190564251","20/02/2019","Strengthening Families","CP Area 5-Whitemore Reans","R1100"
"Wolverhampton City Council","http://opendatacommunities.org/id/metropolitan-district-council/wolverhampton","710928","Yoo Recruit LTD","CWC10345736","-11.85","Agency Staff","190564466","20/02/2019","Strengthening Families","MASH","R1100"
"Wolverhampton City Council","http://opendatacommunities.org/id/metropolitan-district-council/wolverhampton","710928","Yoo Recruit LTD","CWC1034548","-13.05","Agency Staff","190563779","20/02/2019","Children & Young People In Care","LAC Transitions Team","R1100"
"Wolverhampton City Council","http://opendatacommunities.org/id/metropolitan-district-council/wolverhampton","710928","Yoo Recruit LTD","CWC1034549","-13.05","Agency Staff","190563780","20/02/2019","Children & Young People In Care","LAC Transitions Team","R1100"
"Wolverhampton City Council","http://opendatacommunities.org/id/metropolitan-district-council/wolverhampton","710928","Yoo Recruit LTD","CWC1034547","-13.50","Agency Staff","190563778","20/02/2019","Children & Young People In Care","LAC Transitions Team","R1100"
"Wolverhampton City Council","http://opendatacommunities.org/id/metropolitan-district-council/wolverhampton","710928","Yoo Recruit LTD","CWC1034946","1,508.91","Agency Staff","190564591","20/02/2019","Mental Health Assesment & Care Management","Mental Health Assessment & Care Management","R1100"
"Wolverhampton City Council","http://opendatacommunities.org/id/metropolitan-district-council/wolverhampton","710928","Yoo Recruit LTD","CWC10345161","135.80","Agency Staff","190563891","20/02/2019","Learning Disability Provider","Duke Street Bungalows","R1100"
"Wolverhampton City Council","http://opendatacommunities.org/id/metropolitan-district-council/wolverhampton","710928","Yoo Recruit LTD","CWC1034954","1,439.30","Agency Staff","190564599","20/02/2019","Independent Living Service","Independent Living Service","R1100"
"Wolverhampton City Council","http://opendatacommunities.org/id/metropolitan-district-council/wolverhampton","710928","Yoo Recruit LTD","CWC1034953","1,424.50","Agency Staff","190564598","20/02/2019","Independent Living Service","Independent Living Service","R1100"
"Wolverhampton City Council","http://opendatacommunities.org/id/metropolitan-district-council/wolverhampton","710928","Yoo Recruit LTD","CWC1034955","1,443.75","Agency Staff","190564600","20/02/2019","Independent Living Service","Independent Living Service","R1100"
"Wolverhampton City Council","http://opendatacommunities.org/id/metropolitan-district-council/wolverhampton","710928","Yoo Recruit LTD","CWC1034577","-1.50","Agency Staff","190563808","20/02/2019","Children & Young People In Care","LAC Transitions Team","R1100"
"Wolverhampton City Council","http://opendatacommunities.org/id/metropolitan-district-council/wolverhampton","710928","Yoo Recruit LTD","CWC1034578","-1.50","Agency Staff","190563809","20/02/2019","Children & Young People In Care","LAC Transitions Team","R1100"
"Wolverhampton City Council","http://opendatacommunities.org/id/metropolitan-district-council/wolverhampton","710928","Yoo Recruit LTD","CWC10345644","5.50","Agency Staff","190564374","20/02/2019","Strengthening Families","CP Area 5-Whitemore Reans","R1100"
"Wolverhampton City Council","http://opendatacommunities.org/id/metropolitan-district-council/wolverhampton","710928","Yoo Recruit LTD","CWC10345776","0.90","Agency Staff","190564506","20/02/2019","Adults Assessment & Care Management SLC","Supporting Life Choices","R1100"
"Wolverhampton City Council","http://opendatacommunities.org/id/metropolitan-district-council/wolverhampton","710928","Yoo Recruit LTD","CWC1034595","5.50","Agency Staff","190563826","20/02/2019","Children & Young People In Care","LAC Transitions Team","R1100"
"Wolverhampton City Council","http://opendatacommunities.org/id/metropolitan-district-council/wolverhampton","710928","Yoo Recruit LTD","CWC10345631","4.95","Agency Staff","190564361","20/02/2019","Strengthening Families","CP Area 5-Whitemore Reans","R1100"
"Wolverhampton City Council","http://opendatacommunities.org/id/metropolitan-district-council/wolverhampton","710928","Yoo Recruit LTD","CWC10345630","4.95","Agency Staff","190564360","20/02/2019","Strengthening Families","CP Area 5-Whitemore Reans","R1100"
"Wolverhampton City Council","http://opendatacommunities.org/id/metropolitan-district-council/wolverhampton","710928","Yoo Recruit LTD","CWC10345632","4.95","Agency Staff","190564362","20/02/2019","Strengthening Families","CP Area 5-Whitemore Reans","R1100"
"Wolverhampton City Council","http://opendatacommunities.org/id/metropolitan-district-council/wolverhampton","710928","Yoo Recruit LTD","CWC10345329","345.60","Agency Staff","190564059","20/02/2019","Corporate Business Support","Corporate Programmes","R1100"
"Wolverhampton City Council","http://opendatacommunities.org/id/metropolitan-district-council/wolverhampton","710928","Yoo Recruit LTD","CWC10345633","4.95","Agency Staff","190564363","20/02/2019","Strengthening Families","CP Area 5-Whitemore Reans","R1100"
"Wolverhampton City Council","http://opendatacommunities.org/id/metropolitan-district-council/wolverhampton","710928","Yoo Recruit LTD","CWC10349272","346.29","Agency Staff","190564817","20/02/2019","School Planning & Resources","Music Support Team","R1100"
"Wolverhampton City Council","http://opendatacommunities.org/id/metropolitan-district-council/wolverhampton","710928","Yoo Recruit LTD","CWC10349266","4.95","Agency Staff","190564811","20/02/2019","School Planning & Resources","Music Support Team","R1100"
"Wolverhampton City Council","http://opendatacommunities.org/id/metropolitan-district-council/wolverhampton","710928","Yoo Recruit LTD","CWC10345364","343.65","Agency Staff","190564094","20/02/2019","Adult Education","Direct Delivery Team ( L.& D.)","R1100"
"Wolverhampton City Council","http://opendatacommunities.org/id/metropolitan-district-council/wolverhampton","710931","DR Builders","17/0235/DFG","28,930.00","Grants paid out to other organisations","190559683","08/02/2019","-","Disabled Facilities Grants","C5011"
"Wolverhampton City Council","http://opendatacommunities.org/id/metropolitan-district-council/wolverhampton","710968","Something Different (UK)","20793","276.00","Marketing \ Non-staff advertising","130244132","27/02/2019","Corporate Communications","Communications & Marketing - General","R4317"
"Wolverhampton City Council","http://opendatacommunities.org/id/metropolitan-district-council/wolverhampton","710972","Berrybrook /Perry Hall Multi-Academy Trust","Early Years Autumn term Final Payment and Spring Term Interim Payment","26,966.55","Grant Payments","190561946","15/02/2019","Central Education","Academy Early years","R4700"
"Wolverhampton City Council","http://opendatacommunities.org/id/metropolitan-district-council/wolverhampton","710994","Bemrosebooth Paragon","466876","2,891.25","Stationery","130240784","08/02/2019","Parking Services","On Street Parking","R4308"
"Wolverhampton City Council","http://opendatacommunities.org/id/metropolitan-district-council/wolverhampton","711006","Children United Ltd","11912C","270.00","TPP - Child Care provided for client","130242516","01/02/2019","Adult Education","Discretionary Fund","R5034"
"Wolverhampton City Council","http://opendatacommunities.org/id/metropolitan-district-council/wolverhampton","711006","Children United Ltd","11912B","360.00","TPP - Child Care provided for client","130242515","01/02/2019","Adult Education","Discretionary Fund","R5034"
"Wolverhampton City Council","http://opendatacommunities.org/id/metropolitan-district-council/wolverhampton","711006","Children United Ltd","11912A","180.00","TPP - Child Care provided for client","130242514","01/02/2019","Adult Education","Discretionary Fund","R5034"
"Wolverhampton City Council","http://opendatacommunities.org/id/metropolitan-district-council/wolverhampton","711010","Network Ventures Ltd","076V173305","2,275.00","Services - Professional Fees","130242825","20/02/2019","ICTS","Strategic ICTS (ICT Service Budget)","R4400"
"Wolverhampton City Council","http://opendatacommunities.org/id/metropolitan-district-council/wolverhampton","711010","Network Ventures Ltd","076V173233","2,275.00","Services - Professional Fees","130242367","13/02/2019","ICTS","Strategic ICTS (ICT Service Budget)","R4400"
"Wolverhampton City Council","http://opendatacommunities.org/id/metropolitan-district-council/wolverhampton","711010","Network Ventures Ltd","076V173163","2,275.00","Services - Professional Fees","130241183","08/02/2019","ICTS","Strategic ICTS (ICT Service Budget)","R4400"
"Wolverhampton City Council","http://opendatacommunities.org/id/metropolitan-district-council/wolverhampton","711010","Network Ventures Ltd","076V173016","455.00","Services - Professional Fees","130239605","08/02/2019","ICTS","Strategic ICTS (ICT Service Budget)","R4400"
"Wolverhampton City Council","http://opendatacommunities.org/id/metropolitan-district-council/wolverhampton","711010","Network Ventures Ltd","076V173087","1,365.00","Services - Professional Fees","130240330","08/02/2019","ICTS","Strategic ICTS (ICT Service Budget)","R4400"
"Wolverhampton City Council","http://opendatacommunities.org/id/metropolitan-district-council/wolverhampton","711015","The OT Practice","INV-014981","10,206.87","Services - DoLS Assessments","130242826","22/02/2019","Safeguarding","MCA General","R4417"
"Wolverhampton City Council","http://opendatacommunities.org/id/metropolitan-district-council/wolverhampton","711026","Oxford University Hospital","8293882 OOA GUM Month 9 2018/19","131.00","TPP - Public Health Contracts","190561939","15/02/2019","Starting and Developing Well","Sexual Health","R5060"
"Wolverhampton City Council","http://opendatacommunities.org/id/metropolitan-district-council/wolverhampton","711070","DWF LLP","101-2047619","11,446.33","External Professional Fees","130244699","27/02/2019","-","Wolverhampton Interchange Block 10 Development","C6002"
"Wolverhampton City Council","http://opendatacommunities.org/id/metropolitan-district-council/wolverhampton","711094","OTS","0000026330","335.00","Equipment - Purchase","130242827","27/02/2019","Older People Provider Services","ILS Stores","R4000"
"Wolverhampton City Council","http://opendatacommunities.org/id/metropolitan-district-council/wolverhampton","711094","OTS","0000026330","1,874.50","Equipment - Purchase","130242827","27/02/2019","Older People Provider Services","ILS Stores","R4000"
"Wolverhampton City Council","http://opendatacommunities.org/id/metropolitan-district-council/wolverhampton","711118","ShredPro","P28341","95.00","TPP - Waste Disposal","130245137","27/02/2019","Facilities Management","Civic Centre","R5003"
"Wolverhampton City Council","http://opendatacommunities.org/id/metropolitan-district-council/wolverhampton","711118","ShredPro","P27899","300.50","TPP - Waste Disposal","130244354","27/02/2019","Facilities Management","Civic Centre","R5003"
"Wolverhampton City Council","http://opendatacommunities.org/id/metropolitan-district-council/wolverhampton","711118","ShredPro","P28340","356.00","TPP - Waste Disposal","130245136","27/02/2019","Facilities Management","Civic Centre","R5003"
"Wolverhampton City Council","http://opendatacommunities.org/id/metropolitan-district-council/wolverhampton","711118","ShredPro","P28084","6.10","TPP - Waste Disposal","130245135","27/02/2019","Facilities Management","Civic Centre","R5003"
"Wolverhampton City Council","http://opendatacommunities.org/id/metropolitan-district-council/wolverhampton","711118","ShredPro","P28084","66.90","TPP - Waste Disposal","130245135","27/02/2019","Facilities Management","Civic Centre","R5003"
"Wolverhampton City Council","http://opendatacommunities.org/id/metropolitan-district-council/wolverhampton","711118","ShredPro","P27185","444.50","TPP - Waste Disposal","130242647","08/02/2019","Facilities Management","Civic Centre","R5003"
"Wolverhampton City Council","http://opendatacommunities.org/id/metropolitan-district-council/wolverhampton","711118","ShredPro","P27900","107.50","TPP - Waste Disposal","130244355","27/02/2019","Facilities Management","Civic Centre","R5003"
"Wolverhampton City Council","http://opendatacommunities.org/id/metropolitan-district-council/wolverhampton","711118","ShredPro","P26520","66.50","TPP - Waste Disposal","130241186","01/02/2019","Facilities Management","Civic Centre","R5003"
"Wolverhampton City Council","http://opendatacommunities.org/id/metropolitan-district-council/wolverhampton","711118","ShredPro","P27524","435.00","TPP - Waste Disposal","130243719","15/02/2019","Facilities Management","Civic Centre","R5003"
"Wolverhampton City Council","http://opendatacommunities.org/id/metropolitan-district-council/wolverhampton","711118","ShredPro","P27186","121.00","TPP - Waste Disposal","130242648","06/02/2019","Facilities Management","Civic Centre","R5003"
"Wolverhampton City Council","http://opendatacommunities.org/id/metropolitan-district-council/wolverhampton","711118","ShredPro","P27071","40.00","TPP - Waste Disposal","130242368","06/02/2019","Facilities Management","Civic Centre","R5003"
"Wolverhampton City Council","http://opendatacommunities.org/id/metropolitan-district-council/wolverhampton","711118","ShredPro","P26849","121.00","TPP - Waste Disposal","130242080","06/02/2019","Facilities Management","Civic Centre","R5003"
"Wolverhampton City Council","http://opendatacommunities.org/id/metropolitan-district-council/wolverhampton","711118","ShredPro","P26848","327.00","TPP - Waste Disposal","130242079","06/02/2019","Facilities Management","Civic Centre","R5003"
"Wolverhampton City Council","http://opendatacommunities.org/id/metropolitan-district-council/wolverhampton","711118","ShredPro","P27525","20.50","TPP - Waste Disposal","130243720","15/02/2019","Facilities Management","Civic Centre","R5003"
"Wolverhampton City Council","http://opendatacommunities.org/id/metropolitan-district-council/wolverhampton","711118","ShredPro","P27760","6.00","TPP - Waste Disposal","130244134","15/02/2019","Facilities Management","Civic Centre","R5003"
"Wolverhampton City Council","http://opendatacommunities.org/id/metropolitan-district-council/wolverhampton","711118","ShredPro","P27760","14.00","TPP - Waste Disposal","130244134","15/02/2019","Facilities Management","Civic Centre","R5003"
"Wolverhampton City Council","http://opendatacommunities.org/id/metropolitan-district-council/wolverhampton","711135","Hindley Contractors LTD","17/0702/DFG","4,560.00","Grants paid out to other organisations","190559685","08/02/2019","-","Disabled Facilities Grants","C5011"
"Wolverhampton City Council","http://opendatacommunities.org/id/metropolitan-district-council/wolverhampton","711135","Hindley Contractors LTD","17/0017/DFG","6,507.40","Grants paid out to other organisations","190563601","20/02/2019","-","Disabled Facilities Grants","C5011"
"Wolverhampton City Council","http://opendatacommunities.org/id/metropolitan-district-council/wolverhampton","711135","Hindley Contractors LTD","16/0082/DFG","4,070.00","Grants paid out to other organisations","190558616","06/02/2019","-","Disabled Facilities Grants","C5011"
"Wolverhampton City Council","http://opendatacommunities.org/id/metropolitan-district-council/wolverhampton","711148","Tarmac Trading Limited","9037824310","131.58","Materials","130212143","22/02/2019","Highways Maintenance","Planned Highways Maintenance","R4007"
"Wolverhampton City Council","http://opendatacommunities.org/id/metropolitan-district-council/wolverhampton","711177","AUTISM INDEPENDENT UK-(SFTAH)","JAN2D19-100","265.00","Training Expenses","130240575","06/02/2019","Public Service Reform","Centralised Training","R1650"
"Wolverhampton City Council","http://opendatacommunities.org/id/metropolitan-district-council/wolverhampton","711209","SJC Castle Ltd","FINEWS058","88.70","Books","130244828","27/02/2019","Local Economy","Finchfield Library","R4309"
"Wolverhampton City Council","http://opendatacommunities.org/id/metropolitan-district-council/wolverhampton","711271","Telford Occupational Heath Service Ltd","37660","235.00","Services - Professional Fees","130243551","08/02/2019","Human Resources","Doctors Service","R4400"
"Wolverhampton City Council","http://opendatacommunities.org/id/metropolitan-district-council/wolverhampton","711297","HARRISON PROPERTY ASSOCIATES (UK) LTD","082014/302RE-ISSUE","1,280.00","Accommodation Costs","130241047","20/02/2019","Child Protection","No Recourse to Public Funds - CIN/CP","R4900"
"Wolverhampton City Council","http://opendatacommunities.org/id/metropolitan-district-council/wolverhampton","711297","HARRISON PROPERTY ASSOCIATES (UK) LTD","082014/310RE-ISSUE","1,200.00","Accommodation Costs","130241048","20/02/2019","Child Protection","No Recourse to Public Funds - CIN/CP","R4900"
"Wolverhampton City Council","http://opendatacommunities.org/id/metropolitan-district-council/wolverhampton","711345","Rundle and Co Ltd","104899/B VAT ONLY","75.00","Bailiff Action","130244559","20/02/2019","Revenues & Benefits","Revenues","R9382"
"Wolverhampton City Council","http://opendatacommunities.org/id/metropolitan-district-council/wolverhampton","711387","GTG Training Limited","559408","300.00","Training Expenses","130243072","20/02/2019","Public Service Reform","Centralised Training","R1650"
"Wolverhampton City Council","http://opendatacommunities.org/id/metropolitan-district-council/wolverhampton","711387","GTG Training Limited","559410","450.00","Training Expenses","130243074","20/02/2019","Audit Services","Health & Safety","R1650"
"Wolverhampton City Council","http://opendatacommunities.org/id/metropolitan-district-council/wolverhampton","711387","GTG Training Limited","559409","450.00","Training Expenses","130243073","20/02/2019","Audit Services","Health & Safety","R1650"
"Wolverhampton City Council","http://opendatacommunities.org/id/metropolitan-district-council/wolverhampton","711387","GTG Training Limited","559406","130.00","Room Hire","130243071","20/02/2019","School Improvement","School Standards Training","R2201"
"Wolverhampton City Council","http://opendatacommunities.org/id/metropolitan-district-council/wolverhampton","711387","GTG Training Limited","558874","600.00","Training Expenses","130241788","13/02/2019","Public Service Reform","Centralised Training","R1650"
"Wolverhampton City Council","http://opendatacommunities.org/id/metropolitan-district-council/wolverhampton","711387","GTG Training Limited","558874","230.00","Training Expenses","130241788","13/02/2019","Public Service Reform","Centralised Training","R1650"
"Wolverhampton City Council","http://opendatacommunities.org/id/metropolitan-district-council/wolverhampton","711387","GTG Training Limited","559188","440.00","Room Hire","130243722","20/02/2019","School Improvement","School Improvement","R2201"
"Wolverhampton City Council","http://opendatacommunities.org/id/metropolitan-district-council/wolverhampton","711387","GTG Training Limited","559187","130.00","Room Hire","130243721","20/02/2019","School Improvement","School Standards Training","R2201"
"Wolverhampton City Council","http://opendatacommunities.org/id/metropolitan-district-council/wolverhampton","711438","Peter Chand Storyteller","020219","300.00","Services - Professional Fees","190563557","20/02/2019","Local Economy","Literature Festival","R4400"
"Wolverhampton City Council","http://opendatacommunities.org/id/metropolitan-district-council/wolverhampton","711451","Steven Edwards Engineering Limited","INV-4626","210.00","R&M - Departmental planned (external)","130241187","27/02/2019","Facilities Management","Parkfields Office Accomodation","R2001"
"Wolverhampton City Council","http://opendatacommunities.org/id/metropolitan-district-council/wolverhampton","711563","Mandy  Dalton Marsh","TFT Spring 19 February","188.64","TPP - Private Nursery Education Funding","190565405","22/02/2019","Early Years","Early Years Entitlement Funding for Disadvantaged 2 Year Olds","R5035"
"Wolverhampton City Council","http://opendatacommunities.org/id/metropolitan-district-council/wolverhampton","711563","Mandy  Dalton Marsh","NEF Spring 19 February","153.00","TPP - Private Nursery Education Funding","190565402","22/02/2019","Early Years","Early Years Universal Entitlement for 3 and 4 Year Olds","R5035"
"Wolverhampton City Council","http://opendatacommunities.org/id/metropolitan-district-council/wolverhampton","711609","Wolverhampton Racecourse","DPI28534","464.00","Catering","130242227","20/02/2019","Public Service Reform","Workforce Development","R4100"
"Wolverhampton City Council","http://opendatacommunities.org/id/metropolitan-district-council/wolverhampton","711609","Wolverhampton Racecourse","DPI28534","1,200.00","Room Hire","130242227","20/02/2019","Public Service Reform","Workforce Development","R2201"
"Wolverhampton City Council","http://opendatacommunities.org/id/metropolitan-district-council/wolverhampton","711609","Wolverhampton Racecourse","DPI28534","350.00","Equipment - Hire","130242227","20/02/2019","Public Service Reform","Workforce Development","R4001"
"Wolverhampton City Council","http://opendatacommunities.org/id/metropolitan-district-council/wolverhampton","711692","Central Manchester University Hospitals","0000424767 GUM November 2018-19","132.00","TPP - Public Health Contracts","190564996","20/02/2019","Starting and Developing Well","Sexual Health","R5060"
"Wolverhampton City Council","http://opendatacommunities.org/id/metropolitan-district-council/wolverhampton","711708","APSE","1819/954","238.00","Conference Expenses","130245527","27/02/2019","Service Director City Environment","Service Director City Environment","R4611"
"Wolverhampton City Council","http://opendatacommunities.org/id/metropolitan-district-council/wolverhampton","711714","Bilston Magazine","SI-42","540.00","Marketing \ Non-staff advertising","130242370","20/02/2019","Leisure Services","WV Active Marketing","R4317"
"Wolverhampton City Council","http://opendatacommunities.org/id/metropolitan-district-council/wolverhampton","711772","Old Hall School","OHS-70","2,975.52","TPP - Alternative Provision of Education","130243076","06/02/2019","Special Educational Needs","SEN Education OOC","R5037"
"Wolverhampton City Council","http://opendatacommunities.org/id/metropolitan-district-council/wolverhampton","711772","Old Hall School","OHS-69","2,975.52","TPP - Alternative Provision of Education","130243075","06/02/2019","Special Educational Needs","SEN Education OOC","R5037"
"Wolverhampton City Council","http://opendatacommunities.org/id/metropolitan-district-council/wolverhampton","711772","Old Hall School","OHS-71","2,975.52","TPP - Alternative Provision of Education","130243077","06/02/2019","Special Educational Needs","SEN Education OOC","R5037"
"Wolverhampton City Council","http://opendatacommunities.org/id/metropolitan-district-council/wolverhampton","711784","Guardian News and Media Ltd","1165601","1,400.00","Staff Advertising Costs","130240440","06/02/2019","ICTS","Strategic ICTS (ICT Service Budget)","R1700"
"Wolverhampton City Council","http://opendatacommunities.org/id/metropolitan-district-council/wolverhampton","711785","Progress Adult Living Services","094320190205","1,664.00","TPP - Home Care","190558655","06/02/2019","Learning Disabilities Care Purchasing","LD Care Purchasing (Spot Placements)","R5420"
"Wolverhampton City Council","http://opendatacommunities.org/id/metropolitan-district-council/wolverhampton","711785","Progress Adult Living Services","094320190205","1,664.00","TPP - Home Care","190558655","06/02/2019","Learning Disabilities Care Purchasing","LD Care Purchasing (Spot Placements)","R5420"
"Wolverhampton City Council","http://opendatacommunities.org/id/metropolitan-district-council/wolverhampton","711785","Progress Adult Living Services","INV-106620190205","1,248.00","TPP - Home Care","190558657","06/02/2019","Learning Disabilities Care Purchasing","LD Care Purchasing (Spot Placements)","R5420"
"Wolverhampton City Council","http://opendatacommunities.org/id/metropolitan-district-council/wolverhampton","711785","Progress Adult Living Services","INV-106620190205","1,248.00","TPP - Home Care","190558657","06/02/2019","Learning Disabilities Care Purchasing","LD Care Purchasing (Spot Placements)","R5420"
"Wolverhampton City Council","http://opendatacommunities.org/id/metropolitan-district-council/wolverhampton","711785","Progress Adult Living Services","INV-106520190205","609.00","TPP - Home Care","190558656","06/02/2019","Learning Disabilities Care Purchasing","LD Care Purchasing (Spot Placements)","R5420"
"Wolverhampton City Council","http://opendatacommunities.org/id/metropolitan-district-council/wolverhampton","711785","Progress Adult Living Services","INV-106520190205","870.00","TPP - Home Care","190558656","06/02/2019","Learning Disabilities Care Purchasing","LD Care Purchasing (Spot Placements)","R5420"
"Wolverhampton City Council","http://opendatacommunities.org/id/metropolitan-district-council/wolverhampton","711785","Progress Adult Living Services","INV-1064","3,004.20","TPP - Short Breaks","130243306","27/02/2019","Children & Young People In Care","Short Breaks","R5500"
"Wolverhampton City Council","http://opendatacommunities.org/id/metropolitan-district-council/wolverhampton","711785","Progress Adult Living Services","P19834220190208","189.75","TPP - Short Breaks","190560495","13/02/2019","Children & Young People In Care","Short Breaks","R5500"
"Wolverhampton City Council","http://opendatacommunities.org/id/metropolitan-district-council/wolverhampton","711798","Dr Cvijan","DRC/60458","1,839.20","Services - Professional Fees","190565150","22/02/2019","Public Service Reform","Coroners Service","R4400"
"Wolverhampton City Council","http://opendatacommunities.org/id/metropolitan-district-council/wolverhampton","711822","Greenleigh Care Ltd","P198409 03031920190211","1,790.60","TPP - Residential Care - Short Term","190561661","14/02/2019","Older People Care Purchasing","OP Care Purchasing (Spot Placements)","R5401"
"Wolverhampton City Council","http://opendatacommunities.org/id/metropolitan-district-council/wolverhampton","711905","SSAIB","120450","1,110.00","Computing - Purchase of Hardware","130245141","27/02/2019","Operation & Maintenance of Existing Network","Traffic Signals","R4530"
"Wolverhampton City Council","http://opendatacommunities.org/id/metropolitan-district-council/wolverhampton","711940","The Edge Systems Ltd","307199","1,795.00","Equipment - Purchase","130242228","22/02/2019","Licensing","Private Hire Drivers","R4000"
"Wolverhampton City Council","http://opendatacommunities.org/id/metropolitan-district-council/wolverhampton","711940","The Edge Systems Ltd","307199","995.00","Services - Professional Fees","130242228","22/02/2019","Licensing","Private Hire Drivers","R4400"
"Wolverhampton City Council","http://opendatacommunities.org/id/metropolitan-district-council/wolverhampton","712005","YMCA Black Country Group","P19758220190201","90.00","Client Allowances","190557610","06/02/2019","Children & Young People In Care","LAC Transitions Team","R6301"
"Wolverhampton City Council","http://opendatacommunities.org/id/metropolitan-district-council/wolverhampton","712005","YMCA Black Country Group","P19758220190201","90.00","Client Allowances","190557610","06/02/2019","Children & Young People In Care","LAC Transitions Team","R6301"
"Wolverhampton City Council","http://opendatacommunities.org/id/metropolitan-district-council/wolverhampton","712005","YMCA Black Country Group","P19861520190208","90.00","Client Allowances","190560493","13/02/2019","Children & Young People In Care","LAC Transitions Team","R6301"
"Wolverhampton City Council","http://opendatacommunities.org/id/metropolitan-district-council/wolverhampton","712005","YMCA Black Country Group","P19861520190208","90.00","Client Allowances","190560493","13/02/2019","Children & Young People In Care","LAC Transitions Team","R6301"
"Wolverhampton City Council","http://opendatacommunities.org/id/metropolitan-district-council/wolverhampton","712005","YMCA Black Country Group","P19906220190215","90.00","TPP - Supported Living","190562747","20/02/2019","Children & Young People In Care","LAC Transitions Accommodation","R5422"
"Wolverhampton City Council","http://opendatacommunities.org/id/metropolitan-district-council/wolverhampton","712005","YMCA Black Country Group","P19906220190215","90.00","TPP - Supported Living","190562747","20/02/2019","Children & Young People In Care","LAC Transitions Accommodation","R5422"
"Wolverhampton City Council","http://opendatacommunities.org/id/metropolitan-district-council/wolverhampton","712005","YMCA Black Country Group","P19939720190222","90.00","TPP - Supported Living","190565876","27/02/2019","Children & Young People In Care","LAC Transitions Accommodation","R5422"
"Wolverhampton City Council","http://opendatacommunities.org/id/metropolitan-district-council/wolverhampton","712005","YMCA Black Country Group","P19939720190222","90.00","TPP - Supported Living","190565876","27/02/2019","Children & Young People In Care","LAC Transitions Accommodation","R5422"
"Wolverhampton City Council","http://opendatacommunities.org/id/metropolitan-district-council/wolverhampton","712020","SA Lockett","11576","180.00","Services - Professional Fees","130241596","27/02/2019","Bereavement Services","Cemeteries","R4400"
"Wolverhampton City Council","http://opendatacommunities.org/id/metropolitan-district-council/wolverhampton","712064","HH Plastics Limited","66761","51.52","Materials","130241415","27/02/2019","Bereavement Services","Crematorium","R4007"
"Wolverhampton City Council","http://opendatacommunities.org/id/metropolitan-district-council/wolverhampton","712129","Carol Davies","169","375.00","Training Expenses","130242230","13/02/2019","Safeguarding","Safeguarding Partnership Board","R1650"
"Wolverhampton City Council","http://opendatacommunities.org/id/metropolitan-district-council/wolverhampton","712129","Carol Davies","168","375.00","Training Expenses","130242229","20/02/2019","Safeguarding","Safeguarding Partnership Board","R1650"
"Wolverhampton City Council","http://opendatacommunities.org/id/metropolitan-district-council/wolverhampton","712129","Carol Davies","167","210.60","Services - Professional Fees","130241307","13/02/2019","Safeguarding","Safeguarding Partnership Board","R4400"
"Wolverhampton City Council","http://opendatacommunities.org/id/metropolitan-district-council/wolverhampton","712171","Robert Conway","474/19","75.00","Services - Professional Fees","130240785","08/02/2019","Visitor Economy","Art Galleries - Schools Art SLA Service","R4400"
"Wolverhampton City Council","http://opendatacommunities.org/id/metropolitan-district-council/wolverhampton","712171","Robert Conway","476/19","75.00","Services - Professional Fees","130241597","15/02/2019","Visitor Economy","Art Galleries - Schools Art SLA Service","R4400"
"Wolverhampton City Council","http://opendatacommunities.org/id/metropolitan-district-council/wolverhampton","712171","Robert Conway","477/19","300.00","Services - Professional Fees","130242081","20/02/2019","Visitor Economy","Curatorial - Cultural Learning","R4400"
"Wolverhampton City Council","http://opendatacommunities.org/id/metropolitan-district-council/wolverhampton","712171","Robert Conway","478/19","250.00","Services - Professional Fees","130242082","20/02/2019","Visitor Economy","Art Galleries - Schools Art SLA Service","R4400"
"Wolverhampton City Council","http://opendatacommunities.org/id/metropolitan-district-council/wolverhampton","712223","ASBOF","AZA1633 - Levy Payment 01/01/18 - 31/12/2018","216.00","Subscriptions","130242098","06/02/2019","Corporate Communications","Communications & Marketing - General","R4701"
"Wolverhampton City Council","http://opendatacommunities.org/id/metropolitan-district-council/wolverhampton","712280","Libran Property Management","P19905920190215","534.64","Client Allowances","190562744","20/02/2019","Children & Young People In Care","Looked After Team 1","R6301"
"Wolverhampton City Council","http://opendatacommunities.org/id/metropolitan-district-council/wolverhampton","712374","Pohwer","SINV8912","10,131.42","TPP - Social Care Support Services","130239912","08/02/2019","Strategic Commissioning","Local Reform and Community Voices Grant","R5501"
"Wolverhampton City Council","http://opendatacommunities.org/id/metropolitan-district-council/wolverhampton","712391","Cary�s Childcare","TFT Spring 19 February","188.64","TPP - Private Nursery Education Funding","190565405","22/02/2019","Early Years","Early Years Entitlement Funding for Disadvantaged 2 Year Olds","R5035"
"Wolverhampton City Council","http://opendatacommunities.org/id/metropolitan-district-council/wolverhampton","712391","Cary�s Childcare","NEF Spring 19 February","1,173.00","TPP - Private Nursery Education Funding","190565402","22/02/2019","Early Years","Early Years Universal Entitlement for 3 and 4 Year Olds","R5035"
"Wolverhampton City Council","http://opendatacommunities.org/id/metropolitan-district-council/wolverhampton","712421","Les Mills Fitness UK Ltd","SIV298435","243.48","Services - General Licences","130240580","06/02/2019","Leisure Services","Central Baths","R4402"
"Wolverhampton City Council","http://opendatacommunities.org/id/metropolitan-district-council/wolverhampton","712421","Les Mills Fitness UK Ltd","SIV298324","659.28","Services - General Licences","130240578","06/02/2019","Leisure Services","Bert Williams Leisure Centre","R4402"
"Wolverhampton City Council","http://opendatacommunities.org/id/metropolitan-district-council/wolverhampton","712421","Les Mills Fitness UK Ltd","SIV298434","410.14","Services - General Licences","130240579","06/02/2019","Leisure Services","Aldersley Leisure Village","R4402"
"Wolverhampton City Council","http://opendatacommunities.org/id/metropolitan-district-council/wolverhampton","712471","Nigel Frank International Ltd","432024435","7,455.00","Agency Staff","130239778","01/02/2019","ICTS","Strategic ICTS (ICT Service Budget)","R1100"
"Wolverhampton City Council","http://opendatacommunities.org/id/metropolitan-district-council/wolverhampton","712481","Frontline Staffing Ltd","4611760","2.46","Agency Staff","130242371","20/02/2019","Strengthening Families","CP Area 8 - Children�s Village","R1100"
"Wolverhampton City Council","http://opendatacommunities.org/id/metropolitan-district-council/wolverhampton","712481","Frontline Staffing Ltd","4611760","1,543.77","Agency Staff","130242371","20/02/2019","Strengthening Families","CP Area 8 - Children�s Village","R1100"
"Wolverhampton City Council","http://opendatacommunities.org/id/metropolitan-district-council/wolverhampton","712481","Frontline Staffing Ltd","4616008","1,546.23","Agency Staff","130242374","22/02/2019","Strengthening Families","CP Area 8 - Children�s Village","R1100"
"Wolverhampton City Council","http://opendatacommunities.org/id/metropolitan-district-council/wolverhampton","712481","Frontline Staffing Ltd","4616006","1,831.50","Agency Staff","130242372","22/02/2019","Strengthening Families","CP Area 5-Whitemore Reans","R1100"
"Wolverhampton City Council","http://opendatacommunities.org/id/metropolitan-district-council/wolverhampton","712481","Frontline Staffing Ltd","4603219","1,546.23","Agency Staff","130241055","13/02/2019","Strengthening Families","CP Area 8 - Children�s Village","R1100"
"Wolverhampton City Council","http://opendatacommunities.org/id/metropolitan-district-council/wolverhampton","712481","Frontline Staffing Ltd","4595664","835.80","Agency Staff","130241053","06/02/2019","Strengthening Families","CP Area 8 - Children�s Village","R1100"
"Wolverhampton City Council","http://opendatacommunities.org/id/metropolitan-district-council/wolverhampton","712481","Frontline Staffing Ltd","4569799","40.05","Agency Staff","130239245","13/02/2019","Strengthening Families","CP Area 4- Bingley","R1100"
"Wolverhampton City Council","http://opendatacommunities.org/id/metropolitan-district-council/wolverhampton","712481","Frontline Staffing Ltd","4575390","1,544.75","Agency Staff","130239246","06/02/2019","Strengthening Families","MASH","R1100"
"Wolverhampton City Council","http://opendatacommunities.org/id/metropolitan-district-council/wolverhampton","712481","Frontline Staffing Ltd","4583420","1,544.75","Agency Staff","130239251","06/02/2019","Strengthening Families","MASH","R1100"
"Wolverhampton City Council","http://opendatacommunities.org/id/metropolitan-district-council/wolverhampton","712481","Frontline Staffing Ltd","4616007","9.00","Agency Staff","130242373","22/02/2019","Strengthening Families","CP Area 8 - Children�s Village","R1100"
"Wolverhampton City Council","http://opendatacommunities.org/id/metropolitan-district-council/wolverhampton","712481","Frontline Staffing Ltd","4616009","6.30","Agency Staff","130242375","22/02/2019","Strengthening Families","CP Area 8 - Children�s Village","R1100"
"Wolverhampton City Council","http://opendatacommunities.org/id/metropolitan-district-council/wolverhampton","712481","Frontline Staffing Ltd","4603220","5.40","Agency Staff","130241056","13/02/2019","Strengthening Families","CP Area 8 - Children�s Village","R1100"
"Wolverhampton City Council","http://opendatacommunities.org/id/metropolitan-district-council/wolverhampton","712481","Frontline Staffing Ltd","4588370","605.38","Agency Staff","130239612","01/02/2019","Strengthening Families","CP Area 6 - Dovecotes","R1100"
"Wolverhampton City Council","http://opendatacommunities.org/id/metropolitan-district-council/wolverhampton","712481","Frontline Staffing Ltd","4591236","125.25","Agency Staff","130239913","01/02/2019","Strengthening Families","CP Area 6 - Dovecotes","R1100"
"Wolverhampton City Council","http://opendatacommunities.org/id/metropolitan-district-council/wolverhampton","712481","Frontline Staffing Ltd","4593895","1,460.25","Agency Staff","130240152","01/02/2019","Strengthening Families","CP Area 5-Whitemore Reans","R1100"
"Wolverhampton City Council","http://opendatacommunities.org/id/metropolitan-district-council/wolverhampton","712481","Frontline Staffing Ltd","4608549","1,831.50","Agency Staff","130241790","15/02/2019","Strengthening Families","CP Area 5-Whitemore Reans","R1100"
"Wolverhampton City Council","http://opendatacommunities.org/id/metropolitan-district-council/wolverhampton","712481","Frontline Staffing Ltd","4602367","1,831.50","Agency Staff","130241054","08/02/2019","Strengthening Families","CP Area 5-Whitemore Reans","R1100"
"Wolverhampton City Council","http://opendatacommunities.org/id/metropolitan-district-council/wolverhampton","712502","Granart Limited","9479","60.00","Materials for resale","130243078","06/02/2019","Bereavement Services","Cemeteries","R4008"
"Wolverhampton City Council","http://opendatacommunities.org/id/metropolitan-district-council/wolverhampton","712514","Co-Operative Web Ltd","INV-21099","150.00","Computing - Purchase of Software","130244540","22/02/2019","Central Corporate Budgets","Corporate Strategy","R4531"
"Wolverhampton City Council","http://opendatacommunities.org/id/metropolitan-district-council/wolverhampton","712514","Co-Operative Web Ltd","INV-21065","150.00","Computing - Purchase of Software","130244541","22/02/2019","Central Corporate Budgets","Corporate Strategy","R4531"
"Wolverhampton City Council","http://opendatacommunities.org/id/metropolitan-district-council/wolverhampton","712514","Co-Operative Web Ltd","INV-21171","150.00","Computing - Purchase of Software","130244538","22/02/2019","Central Corporate Budgets","Corporate Strategy","R4531"
"Wolverhampton City Council","http://opendatacommunities.org/id/metropolitan-district-council/wolverhampton","712514","Co-Operative Web Ltd","INV-21216","150.00","Computing - Purchase of Software","130244537","22/02/2019","Central Corporate Budgets","Corporate Strategy","R4531"
"Wolverhampton City Council","http://opendatacommunities.org/id/metropolitan-district-council/wolverhampton","712514","Co-Operative Web Ltd","INV-21137","150.00","Computing - Purchase of Software","130244539","22/02/2019","Central Corporate Budgets","Corporate Strategy","R4531"
"Wolverhampton City Council","http://opendatacommunities.org/id/metropolitan-district-council/wolverhampton","712514","Co-Operative Web Ltd","INV-21025","150.00","Computing - Purchase of Software","130236901","06/02/2019","Central Corporate Budgets","Corporate Strategy","R4531"
"Wolverhampton City Council","http://opendatacommunities.org/id/metropolitan-district-council/wolverhampton","712514","Co-Operative Web Ltd","INV-21000","150.00","Computing - Purchase of Software","130236900","06/02/2019","Central Corporate Budgets","Corporate Strategy","R4531"
"Wolverhampton City Council","http://opendatacommunities.org/id/metropolitan-district-council/wolverhampton","712530","Lift Truck Services Limited","153521","322.00","Hire of Vehicles","190566334","27/02/2019","Fleet Services","Fleet Management","R3200"
"Wolverhampton City Council","http://opendatacommunities.org/id/metropolitan-district-council/wolverhampton","712571","Hillcrest Children�s Services (2) Ltd t/a Options BESD (1) Ltd","P198195 03031920190211","15,336.00","TPP - Residential Care - Long Term","190560765","13/02/2019","Children & Young People In Care","Out of City - Pooled Budget","R5400"
"Wolverhampton City Council","http://opendatacommunities.org/id/metropolitan-district-council/wolverhampton","712571","Hillcrest Children�s Services (2) Ltd t/a Options BESD (1) Ltd","P198195 03031920190211","15,336.00","TPP - Residential Care - Long Term","190560765","13/02/2019","Children & Young People In Care","Out of City - Pooled Budget","R5400"
"Wolverhampton City Council","http://opendatacommunities.org/id/metropolitan-district-council/wolverhampton","712583","Acuity Legal Limited","22967","5,400.00","Services - Professional Fees","130244359","20/02/2019","Legal Services","Centralised External Legal Costs","R4400"
"Wolverhampton City Council","http://opendatacommunities.org/id/metropolitan-district-council/wolverhampton","712583","Acuity Legal Limited","22649","3,600.00","Services - Professional Fees","130240786","06/02/2019","Legal Services","Centralised External Legal Costs","R4400"
"Wolverhampton City Council","http://opendatacommunities.org/id/metropolitan-district-council/wolverhampton","712583","Acuity Legal Limited","23183","3,738.00","Services - Professional Fees","130243926","27/02/2019","Legal Services","Centralised External Legal Costs","R4400"
"Wolverhampton City Council","http://opendatacommunities.org/id/metropolitan-district-council/wolverhampton","712763","WCC CTAX and NNDR uploads only","612345977293","216.00","Council Tax","190558975","06/02/2019","Strengthening Families","MASH","R2301"
"Wolverhampton City Council","http://opendatacommunities.org/id/metropolitan-district-council/wolverhampton","712763","WCC CTAX and NNDR uploads only","DHP - 18/02/2019 - 1092201F","5.65","Discretionary Benefits","190566481","27/02/2019","Revenues & Benefits","Housing Benefit Payments","R6230"
"Wolverhampton City Council","http://opendatacommunities.org/id/metropolitan-district-council/wolverhampton","712763","WCC CTAX and NNDR uploads only","DHP - 25/02/2019 - 1092201F","5.65","Discretionary Benefits","190566481","27/02/2019","Revenues & Benefits","Housing Benefit Payments","R6230"
"Wolverhampton City Council","http://opendatacommunities.org/id/metropolitan-district-council/wolverhampton","712763","WCC CTAX and NNDR uploads only","1062000A - 612345834727","85.49","Refunds","190567063","27/02/2019","Housing Revenue Account","Housing Revenue Summary Account","R4920"
"Wolverhampton City Council","http://opendatacommunities.org/id/metropolitan-district-council/wolverhampton","712763","WCC CTAX and NNDR uploads only","1004643J - 612346500121","114.14","Refunds","190565899","27/02/2019","Housing Revenue Account","Housing Revenue Summary Account","R4920"
"Wolverhampton City Council","http://opendatacommunities.org/id/metropolitan-district-council/wolverhampton","712763","WCC CTAX and NNDR uploads only","0124125J - 218700180031","130.74","Refunds","190565901","27/02/2019","Housing Revenue Account","Housing Revenue Summary Account","R4920"
"Wolverhampton City Council","http://opendatacommunities.org/id/metropolitan-district-council/wolverhampton","712763","WCC CTAX and NNDR uploads only","DHP - 18/02/2019 - 1092201F","5.65","Discretionary Benefits","190566481","27/02/2019","Revenues & Benefits","Housing Benefit Payments","R6230"
"Wolverhampton City Council","http://opendatacommunities.org/id/metropolitan-district-council/wolverhampton","712763","WCC CTAX and NNDR uploads only","DHP - 25/02/2019 - 1092201F","5.65","Discretionary Benefits","190566481","27/02/2019","Revenues & Benefits","Housing Benefit Payments","R6230"
"Wolverhampton City Council","http://opendatacommunities.org/id/metropolitan-district-council/wolverhampton","712763","WCC CTAX and NNDR uploads only","1062000A - 612346158725","26.67","Refunds","190567064","27/02/2019","Housing Revenue Account","Housing Revenue Summary Account","R4920"
"Wolverhampton City Council","http://opendatacommunities.org/id/metropolitan-district-council/wolverhampton","712763","WCC CTAX and NNDR uploads only","1035671A - 612347233674","208.00","Refunds","190567065","27/02/2019","Housing Revenue Account","Housing Revenue Summary Account","R4920"
"Wolverhampton City Council","http://opendatacommunities.org/id/metropolitan-district-council/wolverhampton","712763","WCC CTAX and NNDR uploads only","612346921127 (a11)","112.00","No Recourse to Public Funds","190561291","13/02/2019","Strengthening Families","CP Area 5-Whitemore Reans","R6314"
"Wolverhampton City Council","http://opendatacommunities.org/id/metropolitan-district-council/wolverhampton","712763","WCC CTAX and NNDR uploads only","612345995011(a11))","101.74","No Recourse to Public Funds","190561292","13/02/2019","Strengthening Families","CP Area 5-Whitemore Reans","R6314"
"Wolverhampton City Council","http://opendatacommunities.org/id/metropolitan-district-council/wolverhampton","712763","WCC CTAX and NNDR uploads only","612346008065","324.88","Refunds","190561376","13/02/2019","Housing Revenue Account","Housing Revenue Summary Account","R4920"
"Wolverhampton City Council","http://opendatacommunities.org/id/metropolitan-district-council/wolverhampton","712763","WCC CTAX and NNDR uploads only","1062529A - 612347219434","722.60","Refunds","190558547","06/02/2019","Housing Revenue Account","Housing Revenue Summary Account","R4920"
"Wolverhampton City Council","http://opendatacommunities.org/id/metropolitan-district-council/wolverhampton","712763","WCC CTAX and NNDR uploads only","1062529A - 612347219698","1,041.30","Refunds","190558548","06/02/2019","Housing Revenue Account","Housing Revenue Summary Account","R4920"
"Wolverhampton City Council","http://opendatacommunities.org/id/metropolitan-district-council/wolverhampton","712766","Film and Video Umbrella","297","240.00","Services - Professional Fees","130242649","27/02/2019","Visitor Economy","Contemporary Gallery - NPO ACE WAG","R4400"
"Wolverhampton City Council","http://opendatacommunities.org/id/metropolitan-district-council/wolverhampton","712819","Ramada Park Hall Hotel & Spa","INV13194","3,729.17","Training Expenses","130245365","27/02/2019","Children & Young People In Care","Fostering Team & Allowances","R1650"
"Wolverhampton City Council","http://opendatacommunities.org/id/metropolitan-district-council/wolverhampton","712874","Riverside Environmental Services Limited","I029211","450.00","R&M - Departmental planned (external)","130243079","22/02/2019","Corporate Asset Management","Statutory Surveys","R2001"
"Wolverhampton City Council","http://opendatacommunities.org/id/metropolitan-district-council/wolverhampton","712874","Riverside Environmental Services Limited","I029212","240.00","Construction and Conversion","130243080","22/02/2019","-","Capital Maintenance - Heating Pipework Upgrades","C1100"
"Wolverhampton City Council","http://opendatacommunities.org/id/metropolitan-district-council/wolverhampton","712874","Riverside Environmental Services Limited","I029213","485.09","R&M - Departmental planned (external)","130243081","22/02/2019","Corporate Asset Management","Statutory Surveys","R2001"
"Wolverhampton City Council","http://opendatacommunities.org/id/metropolitan-district-council/wolverhampton","712874","Riverside Environmental Services Limited","I029349","2,250.00","R&M - Departmental planned (external)","130243086","27/02/2019","Corporate Asset Management","Statutory Surveys","R2001"
"Wolverhampton City Council","http://opendatacommunities.org/id/metropolitan-district-council/wolverhampton","712874","Riverside Environmental Services Limited","I029288","850.00","Construction and Conversion","130243082","27/02/2019","-","Capital Maintenance - Heating Pipework Upgrades","C1100"
"Wolverhampton City Council","http://opendatacommunities.org/id/metropolitan-district-council/wolverhampton","712874","Riverside Environmental Services Limited","I029348","450.00","R&M - Departmental planned (external)","130243085","27/02/2019","Corporate Asset Management","Statutory Surveys","R2001"
"Wolverhampton City Council","http://opendatacommunities.org/id/metropolitan-district-council/wolverhampton","712874","Riverside Environmental Services Limited","I029351","636.50","R&M - Departmental planned (external)","130243088","27/02/2019","Corporate Asset Management","Statutory Surveys","R2001"
"Wolverhampton City Council","http://opendatacommunities.org/id/metropolitan-district-council/wolverhampton","712874","Riverside Environmental Services Limited","I029289","200.00","Construction and Conversion","130243083","27/02/2019","-","Capital Maintenance - Window Upgrade","C1100"
"Wolverhampton City Council","http://opendatacommunities.org/id/metropolitan-district-council/wolverhampton","712874","Riverside Environmental Services Limited","I029350","350.00","R&M - Departmental planned (external)","130243087","27/02/2019","Corporate Asset Management","Statutory Surveys","R2001"
"Wolverhampton City Council","http://opendatacommunities.org/id/metropolitan-district-council/wolverhampton","712874","Riverside Environmental Services Limited","I029290","150.00","Construction and Conversion","130243084","27/02/2019","-","Corporate Asset Management","C1100"
"Wolverhampton City Council","http://opendatacommunities.org/id/metropolitan-district-council/wolverhampton","712879","B D Fuels Ltd","342564","817.07","Heating Oil","130242518","13/02/2019","Local Economy","Tettenhall Library","R2102"
"Wolverhampton City Council","http://opendatacommunities.org/id/metropolitan-district-council/wolverhampton","712905","Dr S Taylor & Dr Cam(Surgery)","M2019Q315HL1IHCQ","9.50","TPP - Public Health Contracts","190567492","27/02/2019","Healthy Life Expectancy","Healthy Lifestyles","R5060"
"Wolverhampton City Council","http://opendatacommunities.org/id/metropolitan-district-council/wolverhampton","712905","Dr S Taylor & Dr Cam(Surgery)","M2019Q315HL2COMQ","150.00","TPP - Public Health Contracts","190567493","27/02/2019","Healthy Life Expectancy","Healthy Lifestyles","R5060"
"Wolverhampton City Council","http://opendatacommunities.org/id/metropolitan-district-council/wolverhampton","712960","Coventry and Warwickshire Partnership Trust","0000034346 GUM Month 8 2018/19","108.61","TPP - Public Health Contracts","190561937","15/02/2019","Starting and Developing Well","Sexual Health","R5060"
"Wolverhampton City Council","http://opendatacommunities.org/id/metropolitan-district-council/wolverhampton","712970","Heart & Soul Community CIC","0190","965.20","Training Expenses","130242519","06/02/2019","Skills","IMPACT","R1650"
"Wolverhampton City Council","http://opendatacommunities.org/id/metropolitan-district-council/wolverhampton","713044","Prestbury Medical Practice","M2019Q315HL2COMQ","325.00","TPP - Public Health Contracts","190567474","27/02/2019","Healthy Life Expectancy","Healthy Lifestyles","R5060"
"Wolverhampton City Council","http://opendatacommunities.org/id/metropolitan-district-council/wolverhampton","713044","Prestbury Medical Practice","M2019Q315HL1IHCQ","526.00","TPP - Public Health Contracts","190567473","27/02/2019","Healthy Life Expectancy","Healthy Lifestyles","R5060"
"Wolverhampton City Council","http://opendatacommunities.org/id/metropolitan-district-council/wolverhampton","713044","Prestbury Medical Practice","M2018Q315SHCIFIQ","400.00","TPP - Public Health Contracts","190557202","01/02/2019","Starting and Developing Well","Sexual Health","R5060"
"Wolverhampton City Council","http://opendatacommunities.org/id/metropolitan-district-council/wolverhampton","713044","Prestbury Medical Practice","M2018Q315SHCIFRQ","315.00","TPP - Public Health Contracts","190557203","01/02/2019","Starting and Developing Well","Sexual Health","R5060"
"Wolverhampton City Council","http://opendatacommunities.org/id/metropolitan-district-council/wolverhampton","713044","Prestbury Medical Practice","M2018Q315SHCIFBQ","640.00","TPP - Public Health Contracts","190557204","01/02/2019","Starting and Developing Well","Sexual Health","R5060"
"Wolverhampton City Council","http://opendatacommunities.org/id/metropolitan-district-council/wolverhampton","713044","Prestbury Medical Practice","M2018Q3.15SHIUDRQ","150.00","TPP - Public Health Contracts","190557206","01/02/2019","Starting and Developing Well","Sexual Health","R5060"
"Wolverhampton City Council","http://opendatacommunities.org/id/metropolitan-district-council/wolverhampton","713044","Prestbury Medical Practice","M2018Q315SHIUFRQ","125.00","TPP - Public Health Contracts","190557205","01/02/2019","Starting and Developing Well","Sexual Health","R5060"
"Wolverhampton City Council","http://opendatacommunities.org/id/metropolitan-district-council/wolverhampton","713044","Prestbury Medical Practice","M2018Q315SHCHLAQ","80.00","TPP - Public Health Contracts","190557207","01/02/2019","Starting and Developing Well","Sexual Health","R5060"
"Wolverhampton City Council","http://opendatacommunities.org/id/metropolitan-district-council/wolverhampton","713044","Prestbury Medical Practice","FOS4182","76.24","Services - Professional Fees","190565765","22/02/2019","Children & Young People In Care","Fostering Team & Allowances","R4400"
"Wolverhampton City Council","http://opendatacommunities.org/id/metropolitan-district-council/wolverhampton","713059","Sage Pay Europe Ltd (formely Sage Pay)","EU-00822412","948.20","Services - Bank Charges","130237072","01/02/2019","Central Corporate Budgets","Corporate Management (Bank Charges)","R4403"
"Wolverhampton City Council","http://opendatacommunities.org/id/metropolitan-district-council/wolverhampton","713109","DMB Consultancy Ltd","FOS4173","78.00","Services - Professional Fees","190565758","22/02/2019","Children & Young People In Care","Fostering Team & Allowances","R4400"
"Wolverhampton City Council","http://opendatacommunities.org/id/metropolitan-district-council/wolverhampton","713109","DMB Consultancy Ltd","521","1,900.00","Services - Professional Fees","130242650","27/02/2019","Human Resources","Doctors Service","R4400"
"Wolverhampton City Council","http://opendatacommunities.org/id/metropolitan-district-council/wolverhampton","713243","Monkey Tower Ltd","7998","283.00","Services - Professional Fees","190562052","27/02/2019","Fleet Services","Fleet Management","R4400"
"Wolverhampton City Council","http://opendatacommunities.org/id/metropolitan-district-council/wolverhampton","713246","Midland Foods Limited","1188878","28.13","Provisions (Not for resale)","130242946","27/02/2019","Older People Provider Services","Bradley Lodge Resource Centre","R4101"
"Wolverhampton City Council","http://opendatacommunities.org/id/metropolitan-district-council/wolverhampton","713246","Midland Foods Limited","1183108","47.85","Provisions (Not for resale)","130240789","27/02/2019","Older People Provider Services","Bradley Lodge Resource Centre","R4101"
"Wolverhampton City Council","http://opendatacommunities.org/id/metropolitan-district-council/wolverhampton","713246","Midland Foods Limited","1182236","47.62","Provisions (Not for resale)","130240788","27/02/2019","Older People Provider Services","Bradley Lodge Resource Centre","R4101"
"Wolverhampton City Council","http://opendatacommunities.org/id/metropolitan-district-council/wolverhampton","713246","Midland Foods Limited","1187254","87.56","Provisions (Not for resale)","130240587","27/02/2019","Older People Provider Services","Bradley Lodge Resource Centre","R4101"
"Wolverhampton City Council","http://opendatacommunities.org/id/metropolitan-district-council/wolverhampton","713246","Midland Foods Limited","1186033","49.38","Provisions (Not for resale)","130240583","27/02/2019","Older People Provider Services","Bradley Lodge Resource Centre","R4101"
"Wolverhampton City Council","http://opendatacommunities.org/id/metropolitan-district-council/wolverhampton","713246","Midland Foods Limited","1187502","80.37","Provisions (Not for resale)","130242944","27/02/2019","Older People Provider Services","Bradley Lodge Resource Centre","R4101"
"Wolverhampton City Council","http://opendatacommunities.org/id/metropolitan-district-council/wolverhampton","713246","Midland Foods Limited","1187007","79.50","Provisions (Not for resale)","130240585","27/02/2019","Older People Provider Services","Bradley Lodge Resource Centre","R4101"
"Wolverhampton City Council","http://opendatacommunities.org/id/metropolitan-district-council/wolverhampton","713246","Midland Foods Limited","1186833","82.53","Provisions (Not for resale)","130240584","27/02/2019","Older People Provider Services","Bradley Lodge Resource Centre","R4101"
"Wolverhampton City Council","http://opendatacommunities.org/id/metropolitan-district-council/wolverhampton","713246","Midland Foods Limited","1185789","72.09","Provisions (Not for resale)","130240582","27/02/2019","Older People Provider Services","Bradley Lodge Resource Centre","R4101"
"Wolverhampton City Council","http://opendatacommunities.org/id/metropolitan-district-council/wolverhampton","713246","Midland Foods Limited","1187127","54.73","Provisions (Not for resale)","130240586","27/02/2019","Older People Provider Services","Bradley Lodge Resource Centre","R4101"
"Wolverhampton City Council","http://opendatacommunities.org/id/metropolitan-district-council/wolverhampton","713246","Midland Foods Limited","1184629","170.64","Provisions (Not for resale)","130240581","27/02/2019","Older People Provider Services","Bradley Lodge Resource Centre","R4101"
"Wolverhampton City Council","http://opendatacommunities.org/id/metropolitan-district-council/wolverhampton","713246","Midland Foods Limited","1189714","72.47","Provisions (Not for resale)","130242947","22/02/2019","Older People Provider Services","Bradley Lodge Resource Centre","R4101"
"Wolverhampton City Council","http://opendatacommunities.org/id/metropolitan-district-council/wolverhampton","713246","Midland Foods Limited","1188467","94.38","Provisions (Not for resale)","130242945","06/02/2019","Older People Provider Services","Blakenhall Resource Centre","R4101"
"Wolverhampton City Council","http://opendatacommunities.org/id/metropolitan-district-council/wolverhampton","713246","Midland Foods Limited","1163679","32.34","Provisions (Not for resale)","130244392","27/02/2019","Older People Provider Services","Bradley Lodge Resource Centre","R4101"
"Wolverhampton City Council","http://opendatacommunities.org/id/metropolitan-district-council/wolverhampton","713246","Midland Foods Limited","1183318","24.24","Provisions (Not for resale)","130240790","27/02/2019","Older People Provider Services","Bradley Lodge Resource Centre","R4101"
"Wolverhampton City Council","http://opendatacommunities.org/id/metropolitan-district-council/wolverhampton","713246","Midland Foods Limited","1162796","17.72","Provisions (Not for resale)","130244391","15/02/2019","Older People Provider Services","Bradley Lodge Resource Centre","R4101"
"Wolverhampton City Council","http://opendatacommunities.org/id/metropolitan-district-council/wolverhampton","713258","MTH Cleaning Equipment Ltd","MTH159280","50.00","Equipment - Purchase","130244705","20/02/2019","Markets","Bilston Market and Licensed Operations","R4000"
"Wolverhampton City Council","http://opendatacommunities.org/id/metropolitan-district-council/wolverhampton","713258","MTH Cleaning Equipment Ltd","MTH166747","90.00","Services - Professional Fees","190557597","06/02/2019","Fleet Services","Fleet Management","R4400"
"Wolverhampton City Council","http://opendatacommunities.org/id/metropolitan-district-council/wolverhampton","713258","MTH Cleaning Equipment Ltd","MTH166747","12.83","Services - Professional Fees","190557597","06/02/2019","Fleet Services","Fleet Management","R4400"
"Wolverhampton City Council","http://opendatacommunities.org/id/metropolitan-district-council/wolverhampton","713258","MTH Cleaning Equipment Ltd","MTH166747","80.13","Services - Professional Fees","190557597","06/02/2019","Fleet Services","Fleet Management","R4400"
"Wolverhampton City Council","http://opendatacommunities.org/id/metropolitan-district-council/wolverhampton","713258","MTH Cleaning Equipment Ltd","MTH166747","12.50","Services - Professional Fees","190557597","06/02/2019","Fleet Services","Fleet Management","R4400"
"Wolverhampton City Council","http://opendatacommunities.org/id/metropolitan-district-council/wolverhampton","713258","MTH Cleaning Equipment Ltd","MTH166747","26.72","Services - Professional Fees","190557597","06/02/2019","Fleet Services","Fleet Management","R4400"
"Wolverhampton City Council","http://opendatacommunities.org/id/metropolitan-district-council/wolverhampton","713258","MTH Cleaning Equipment Ltd","MTH166747","161.77","Services - Professional Fees","190557597","06/02/2019","Fleet Services","Fleet Management","R4400"
"Wolverhampton City Council","http://opendatacommunities.org/id/metropolitan-district-council/wolverhampton","713258","MTH Cleaning Equipment Ltd","MTH163431","132.80","Equipment - Purchase","130244706","20/02/2019","Markets","Bilston Market and Licensed Operations","R4000"
"Wolverhampton City Council","http://opendatacommunities.org/id/metropolitan-district-council/wolverhampton","713258","MTH Cleaning Equipment Ltd","MTH168359","1,150.00","Cleaning Supplies and Materials","130243725","13/02/2019","Older People Provider Services","ILS Stores","R2705"
"Wolverhampton City Council","http://opendatacommunities.org/id/metropolitan-district-council/wolverhampton","713258","MTH Cleaning Equipment Ltd","168474","226.50","Cleaning Supplies and Materials","130243310","13/02/2019","Older People Provider Services","ILS Stores","R2705"
"Wolverhampton City Council","http://opendatacommunities.org/id/metropolitan-district-council/wolverhampton","713286","Energas","5025830","47.80","Equipment - R & M","190562050","15/02/2019","Fleet Services","Fleet Management","R4003"
"Wolverhampton City Council","http://opendatacommunities.org/id/metropolitan-district-council/wolverhampton","713286","Energas","5025830","18.98","Equipment - R & M","190562050","15/02/2019","Fleet Services","Fleet Management","R4003"
"Wolverhampton City Council","http://opendatacommunities.org/id/metropolitan-district-council/wolverhampton","713286","Energas","5025830","11.95","Equipment - R & M","190562050","15/02/2019","Fleet Services","Fleet Management","R4003"
"Wolverhampton City Council","http://opendatacommunities.org/id/metropolitan-district-council/wolverhampton","713286","Energas","5025830","18.98","Equipment - R & M","190562050","15/02/2019","Fleet Services","Fleet Management","R4003"
"Wolverhampton City Council","http://opendatacommunities.org/id/metropolitan-district-council/wolverhampton","713286","Energas","5025830","9.49","Equipment - R & M","190562050","15/02/2019","Fleet Services","Fleet Management","R4003"
"Wolverhampton City Council","http://opendatacommunities.org/id/metropolitan-district-council/wolverhampton","713309","Ironbridge Medical Practice","FOS4178","73.86","Services - Professional Fees","190565761","22/02/2019","Children & Young People In Care","Fostering Team & Allowances","R4400"
"Wolverhampton City Council","http://opendatacommunities.org/id/metropolitan-district-council/wolverhampton","713309","Ironbridge Medical Practice","FOS4179","73.86","Services - Professional Fees","190565762","22/02/2019","Children & Young People In Care","Fostering Team & Allowances","R4400"
"Wolverhampton City Council","http://opendatacommunities.org/id/metropolitan-district-council/wolverhampton","713322","Hampshire County Council","3611078384","914.29","Client Transport","130244707","20/02/2019","Children & Young People In Care","Looked After Team 1","R3042"
"Wolverhampton City Council","http://opendatacommunities.org/id/metropolitan-district-council/wolverhampton","713376","PageOne Communications Ltd","I8065099","175.00","Comms - Mobile Telephones","130243726","13/02/2019","Adult Education","Service Wide","R4507"
"Wolverhampton City Council","http://opendatacommunities.org/id/metropolitan-district-council/wolverhampton","713505","South West Grid for Learning Trust Ltd","0000027556","755.00","Services - Consultants","130243727","13/02/2019","School Planning & Resources","Learning Technologies","R4404"
"Wolverhampton City Council","http://opendatacommunities.org/id/metropolitan-district-council/wolverhampton","713566","Kent Community Health NHS Trust","24064732 NCA - GUM October 2018","142.44","TPP - Public Health Contracts","190561938","15/02/2019","Starting and Developing Well","Sexual Health","R5060"
"Wolverhampton City Council","http://opendatacommunities.org/id/metropolitan-district-council/wolverhampton","713571","WEC Group Ltd","SIN110084","382.50","Construction and Conversion","130242232","15/02/2019","-","GF - Accessing Growth Fund","C1100"
"Wolverhampton City Council","http://opendatacommunities.org/id/metropolitan-district-council/wolverhampton","713574","Tremark Associates Limited","87827","150.00","Services - Professional Fees","130242651","15/02/2019","Legal Services","Centralised External Legal Costs","R4400"
"Wolverhampton City Council","http://opendatacommunities.org/id/metropolitan-district-council/wolverhampton","713625","Personnel Checks","26276","30.00","Services - Professional Fees","130245146","22/02/2019","Licensing","Private Hire Drivers","R4400"
"Wolverhampton City Council","http://opendatacommunities.org/id/metropolitan-district-council/wolverhampton","713637","St Mary�s Catholic Primary Academy","Early Years Autumn term Final Payment and Spring Term Interim Payment","33,987.22","Grant Payments","190561946","15/02/2019","Central Education","Academy Early years","R4700"
"Wolverhampton City Council","http://opendatacommunities.org/id/metropolitan-district-council/wolverhampton","713638","Corpus Christi Catholic Primary Academy","Early Years Autumn Term Final Payment","14,663.96","Grant Payments","190563517","20/02/2019","Central Education","Academy Early years","R4700"
"Wolverhampton City Council","http://opendatacommunities.org/id/metropolitan-district-council/wolverhampton","713638","Corpus Christi Catholic Primary Academy","Early Years Summer Term Correction","20,336.92","Grant Payments","190563516","20/02/2019","Central Education","Academy Early years","R4700"
"Wolverhampton City Council","http://opendatacommunities.org/id/metropolitan-district-council/wolverhampton","713638","Corpus Christi Catholic Primary Academy","Parent Ambassador Support - Corpus Christi Catholic Primary Academy","1,350.00","Services - Professional Fees","190563492","20/02/2019","School Improvement","Controlling Migration Fund","R4400"
"Wolverhampton City Council","http://opendatacommunities.org/id/metropolitan-district-council/wolverhampton","713638","Corpus Christi Catholic Primary Academy","Early Years Spring Term Interim Payment","15,380.78","Grant Payments","190563518","20/02/2019","Central Education","Academy Early years","R4700"
"Wolverhampton City Council","http://opendatacommunities.org/id/metropolitan-district-council/wolverhampton","713639","St Martins Multi Academy Trust","Early Years Autumn term Final Payment and Spring Term Interim Payment","37,537.65","Grant Payments","190561946","15/02/2019","Central Education","Academy Early years","R4700"
"Wolverhampton City Council","http://opendatacommunities.org/id/metropolitan-district-council/wolverhampton","713640","Field View Academy","Early Years Autumn term Final Payment and Spring Term Interim Payment","37,585.20","Grant Payments","190561946","15/02/2019","Central Education","Academy Early years","R4700"
"Wolverhampton City Council","http://opendatacommunities.org/id/metropolitan-district-council/wolverhampton","713670","Wolverhampton Bid Company Ltd","INV-0482","54,000.00","TPP - Business Improvement District (BID) Levy","190560545","13/02/2019","Revenues & Benefits","Business Improvement District","R5152"
"Wolverhampton City Council","http://opendatacommunities.org/id/metropolitan-district-council/wolverhampton","713670","Wolverhampton Bid Company Ltd","INV-0470","60.00","Marketing \ Non-staff advertising","130245147","22/02/2019","Adult Education","Service Wide","R4317"
"Wolverhampton City Council","http://opendatacommunities.org/id/metropolitan-district-council/wolverhampton","713737","Miss Poppy�s Cakes","740","80.50","Provisions (Resale)","130241319","13/02/2019","Visitor Economy","Bantock - Tea Rooms","R4102"
"Wolverhampton City Council","http://opendatacommunities.org/id/metropolitan-district-council/wolverhampton","713737","Miss Poppy�s Cakes","745","105.00","Provisions (Resale)","130241793","20/02/2019","Visitor Economy","Art Gallery Tea Room","R4102"
"Wolverhampton City Council","http://opendatacommunities.org/id/metropolitan-district-council/wolverhampton","713737","Miss Poppy�s Cakes","748","97.00","Provisions (Resale)","130242233","20/02/2019","Visitor Economy","Bantock - Tea Rooms","R4102"
"Wolverhampton City Council","http://opendatacommunities.org/id/metropolitan-district-council/wolverhampton","713737","Miss Poppy�s Cakes","737","116.40","Provisions (Resale)","130241317","13/02/2019","Visitor Economy","Art Gallery Tea Room","R4102"
"Wolverhampton City Council","http://opendatacommunities.org/id/metropolitan-district-council/wolverhampton","713737","Miss Poppy�s Cakes","733","144.50","Provisions (Resale)","130241316","06/02/2019","Visitor Economy","Bantock - Tea Rooms","R4102"
"Wolverhampton City Council","http://opendatacommunities.org/id/metropolitan-district-council/wolverhampton","713737","Miss Poppy�s Cakes","754","184.80","Provisions (Resale)","130242830","27/02/2019","Visitor Economy","Bantock - Tea Rooms","R4102"
"Wolverhampton City Council","http://opendatacommunities.org/id/metropolitan-district-council/wolverhampton","713737","Miss Poppy�s Cakes","751","109.30","Provisions (Resale)","130242828","27/02/2019","Visitor Economy","Art Gallery Tea Room","R4102"
"Wolverhampton City Council","http://opendatacommunities.org/id/metropolitan-district-council/wolverhampton","713737","Miss Poppy�s Cakes","753","94.50","Provisions (Resale)","130242829","27/02/2019","Visitor Economy","Art Gallery Tea Room","R4102"
"Wolverhampton City Council","http://opendatacommunities.org/id/metropolitan-district-council/wolverhampton","713737","Miss Poppy�s Cakes","738","160.00","Provisions (Resale)","130241318","13/02/2019","Visitor Economy","Bantock - Tea Rooms","R4102"
"Wolverhampton City Council","http://opendatacommunities.org/id/metropolitan-district-council/wolverhampton","713747","Link 51 Link Locker (Whittan Ind)","91076403","1,426.37","Fixtures and Fittings - Purchases","130243126","06/02/2019","Schools","Eastfield Primary School","R2500"
"Wolverhampton City Council","http://opendatacommunities.org/id/metropolitan-district-council/wolverhampton","713873","Quartzelec Ltd","7144659","2,080.80","R&M - Departmental planned (external)","130239015","01/02/2019","Maintenance Programme","Centralised R&M","R2001"
"Wolverhampton City Council","http://opendatacommunities.org/id/metropolitan-district-council/wolverhampton","713873","Quartzelec Ltd","7141347","3,143.46","R&M - Departmental planned (external)","130238495","01/02/2019","Maintenance Programme","Centralised R&M","R2001"
"Wolverhampton City Council","http://opendatacommunities.org/id/metropolitan-district-council/wolverhampton","713873","Quartzelec Ltd","7144657","3,735.24","R&M - Departmental planned (external)","130239014","01/02/2019","Maintenance Programme","Centralised R&M","R2001"
"Wolverhampton City Council","http://opendatacommunities.org/id/metropolitan-district-council/wolverhampton","713873","Quartzelec Ltd","7144645","927.90","R&M - Departmental planned (external)","130239010","01/02/2019","Maintenance Programme","Centralised R&M","R2001"
"Wolverhampton City Council","http://opendatacommunities.org/id/metropolitan-district-council/wolverhampton","713873","Quartzelec Ltd","7144651","790.40","R&M - Departmental planned (external)","130239011","01/02/2019","Maintenance Programme","Centralised R&M","R2001"
"Wolverhampton City Council","http://opendatacommunities.org/id/metropolitan-district-council/wolverhampton","713873","Quartzelec Ltd","7144654","788.00","R&M - Departmental planned (external)","130239012","01/02/2019","Maintenance Programme","Centralised R&M","R2001"
"Wolverhampton City Council","http://opendatacommunities.org/id/metropolitan-district-council/wolverhampton","713873","Quartzelec Ltd","7144656","633.06","R&M - Departmental planned (external)","130239013","01/02/2019","Maintenance Programme","Centralised R&M","R2001"
"Wolverhampton City Council","http://opendatacommunities.org/id/metropolitan-district-council/wolverhampton","713873","Quartzelec Ltd","7145932","312.00","R&M - Departmental planned (external)","130242652","27/02/2019","Maintenance Programme","Centralised R&M","R2001"
"Wolverhampton City Council","http://opendatacommunities.org/id/metropolitan-district-council/wolverhampton","713873","Quartzelec Ltd","7145934","312.00","R&M - Departmental planned (external)","130242653","27/02/2019","Maintenance Programme","Centralised R&M","R2001"
"Wolverhampton City Council","http://opendatacommunities.org/id/metropolitan-district-council/wolverhampton","713873","Quartzelec Ltd","7145940","240.72","R&M - Departmental planned (external)","130242658","27/02/2019","Maintenance Programme","Centralised R&M","R2001"
"Wolverhampton City Council","http://opendatacommunities.org/id/metropolitan-district-council/wolverhampton","713873","Quartzelec Ltd","7145942","253.46","R&M - Departmental planned (external)","130242659","27/02/2019","Maintenance Programme","Centralised R&M","R2001"
"Wolverhampton City Council","http://opendatacommunities.org/id/metropolitan-district-council/wolverhampton","713873","Quartzelec Ltd","7144635","543.91","R&M - Departmental planned (external)","130239009","01/02/2019","Maintenance Programme","Centralised R&M","R2001"
"Wolverhampton City Council","http://opendatacommunities.org/id/metropolitan-district-council/wolverhampton","713873","Quartzelec Ltd","7144629","488.52","R&M - Departmental planned (external)","130239008","01/02/2019","Maintenance Programme","Centralised R&M","R2001"
"Wolverhampton City Council","http://opendatacommunities.org/id/metropolitan-district-council/wolverhampton","713873","Quartzelec Ltd","7145939","312.00","R&M - Departmental planned (external)","130242657","27/02/2019","Maintenance Programme","Centralised R&M","R2001"
"Wolverhampton City Council","http://opendatacommunities.org/id/metropolitan-district-council/wolverhampton","713873","Quartzelec Ltd","7145937","312.00","R&M - Departmental planned (external)","130242656","27/02/2019","Maintenance Programme","Centralised R&M","R2001"
"Wolverhampton City Council","http://opendatacommunities.org/id/metropolitan-district-council/wolverhampton","713873","Quartzelec Ltd","7145936","312.00","R&M - Departmental planned (external)","130242655","27/02/2019","Maintenance Programme","Centralised R&M","R2001"
"Wolverhampton City Council","http://opendatacommunities.org/id/metropolitan-district-council/wolverhampton","713873","Quartzelec Ltd","7145935","312.00","R&M - Departmental planned (external)","130242654","27/02/2019","Maintenance Programme","Centralised R&M","R2001"
"Wolverhampton City Council","http://opendatacommunities.org/id/metropolitan-district-council/wolverhampton","713873","Quartzelec Ltd","7146110","312.00","R&M - Departmental planned (external)","130243315","27/02/2019","Maintenance Programme","Centralised R&M","R2001"
"Wolverhampton City Council","http://opendatacommunities.org/id/metropolitan-district-council/wolverhampton","713873","Quartzelec Ltd","7139658","1,000.00","R&M - Departmental planned (external)","130227645","27/02/2019","Maintenance Programme","Centralised R&M","R2001"
"Wolverhampton City Council","http://opendatacommunities.org/id/metropolitan-district-council/wolverhampton","713873","Quartzelec Ltd","7144379","1,971.52","R&M - Departmental planned (external)","130243557","15/02/2019","Maintenance Programme","Centralised R&M","R2001"
"Wolverhampton City Council","http://opendatacommunities.org/id/metropolitan-district-council/wolverhampton","713873","Quartzelec Ltd","7144380","1,410.36","R&M - Departmental planned (external)","130243558","15/02/2019","Maintenance Programme","Centralised R&M","R2001"
"Wolverhampton City Council","http://opendatacommunities.org/id/metropolitan-district-council/wolverhampton","713873","Quartzelec Ltd","7144378","2,792.60","R&M - Departmental planned (external)","130243556","15/02/2019","Maintenance Programme","Centralised R&M","R2001"
"Wolverhampton City Council","http://opendatacommunities.org/id/metropolitan-district-council/wolverhampton","713926","Cefndy Healthcare","800884743","229.25","Equipment - Purchase","130236132","15/02/2019","Older People Provider Services","ILS Stores","R4000"
"Wolverhampton City Council","http://opendatacommunities.org/id/metropolitan-district-council/wolverhampton","713942","Severn Trent Water PLC (Connections)","Payment Request REF:8335409","4,115.18","Water Charges","130243382","20/02/2019","Schools","Pupil Referral Units - Orchard Centre","R2400"
"Wolverhampton City Council","http://opendatacommunities.org/id/metropolitan-district-council/wolverhampton","713952","Unit 4 Business Software Limited","20000007435","500.00","Subscriptions","130240792","20/02/2019","Strategic Finance","Agresso System Support","R4701"
"Wolverhampton City Council","http://opendatacommunities.org/id/metropolitan-district-council/wolverhampton","713952","Unit 4 Business Software Limited","20000007405","500.00","Subscriptions","130240588","06/02/2019","Strategic Finance","Agresso System Support","R4701"
"Wolverhampton City Council","http://opendatacommunities.org/id/metropolitan-district-council/wolverhampton","713994","Mrs Jaswinder Hothi","046","450.00","No Recourse to Public Funds","130242235","20/02/2019","Strengthening Families","CP Area 5-Whitemore Reans","R6314"
"Wolverhampton City Council","http://opendatacommunities.org/id/metropolitan-district-council/wolverhampton","713994","Mrs Jaswinder Hothi","045","450.00","No Recourse to Public Funds","130242234","20/02/2019","Strengthening Families","CP Area 5-Whitemore Reans","R6314"
"Wolverhampton City Council","http://opendatacommunities.org/id/metropolitan-district-council/wolverhampton","714023","Canary Care Global Ltd","INV-0213","828.00","Equipment - Purchase","130244515","20/02/2019","Independent Living Service","Telecare","R4000"
"Wolverhampton City Council","http://opendatacommunities.org/id/metropolitan-district-council/wolverhampton","714048","Lisa Cawthorn","88","384.20","Services - Professional Fees","130242520","06/02/2019","Children & Young People In Care","Panel Expenses Fostering & Adoption","R4400"
"Wolverhampton City Council","http://opendatacommunities.org/id/metropolitan-district-council/wolverhampton","714048","Lisa Cawthorn","89","384.20","Services - Professional Fees","130244135","20/02/2019","Children & Young People In Care","Panel Expenses Fostering & Adoption","R4400"
"Wolverhampton City Council","http://opendatacommunities.org/id/metropolitan-district-council/wolverhampton","714187","Hortons� Estate Limited","71210","1,500.00","Rent","130242951","06/02/2019","Skills","Connexions Contract","R2200"
"Wolverhampton City Council","http://opendatacommunities.org/id/metropolitan-district-council/wolverhampton","714205","Dolphin Media & Design Ltd","4224","796.80","Equipment - Hire","130241320","08/02/2019","Leisure Services","Bert Williams Leisure Centre","R4001"
"Wolverhampton City Council","http://opendatacommunities.org/id/metropolitan-district-council/wolverhampton","714216","Compass Careers Opportunities Ltd","3963","8,100.00","Marketing \ Non-staff advertising","130243728","15/02/2019","Director of Children�s Services","Children & Young People Support Costs","R4317"
"Wolverhampton City Council","http://opendatacommunities.org/id/metropolitan-district-council/wolverhampton","714216","Compass Careers Opportunities Ltd","3937","-75.00","Equipment - Hire","130223364","15/02/2019","Quality Assurance and Policies","Quality Assurance and Policies","R4001"
"Wolverhampton City Council","http://opendatacommunities.org/id/metropolitan-district-council/wolverhampton","714240","Engage Education Ltd","01191Q","2,000.00","Services - Consultants","130242831","27/02/2019","School Planning & Resources","Learning Technologies","R4404"
"Wolverhampton City Council","http://opendatacommunities.org/id/metropolitan-district-council/wolverhampton","714243","St Michael�s CE High School","P19757920190201","600.00","Grant Payments to Individuals","190557607","27/02/2019","Inclusion Support","Pupil Premium","R6402"
"Wolverhampton City Council","http://opendatacommunities.org/id/metropolitan-district-council/wolverhampton","714243","St Michael�s CE High School","P19757920190201","600.00","Grant Payments to Individuals","190557607","27/02/2019","Inclusion Support","Pupil Premium","R6402"
"Wolverhampton City Council","http://opendatacommunities.org/id/metropolitan-district-council/wolverhampton","714245","Imperial College Healthcare NHS","H0164224 GUM Q1 18/19","308.42","TPP - Public Health Contracts","190564995","20/02/2019","Starting and Developing Well","Sexual Health","R5060"
"Wolverhampton City Council","http://opendatacommunities.org/id/metropolitan-district-council/wolverhampton","714245","Imperial College Healthcare NHS","H0167668 GUM Q2 18/19","308.42","TPP - Public Health Contracts","190564994","20/02/2019","Starting and Developing Well","Sexual Health","R5060"
"Wolverhampton City Council","http://opendatacommunities.org/id/metropolitan-district-council/wolverhampton","714250","SG LEE & Sons","00017","58.00","Materials","130241794","20/02/2019","Environmental Maintenance","Northicote Farm","R4007"
"Wolverhampton City Council","http://opendatacommunities.org/id/metropolitan-district-council/wolverhampton","714251","Phils Feeds","01699","870.00","Provisions (Not for resale)","130241795","27/02/2019","Environmental Maintenance","Northicote Farm","R4101"
"Wolverhampton City Council","http://opendatacommunities.org/id/metropolitan-district-council/wolverhampton","714279","Tusker","SIN0000830650","336.96","Services - Professional Fees","130241802","15/02/2019","Human Resources","Salary Sacrifice Schemes","R4400"
"Wolverhampton City Council","http://opendatacommunities.org/id/metropolitan-district-council/wolverhampton","714279","Tusker","13739","26,631.21","Services - Professional Fees","130243317","27/02/2019","Human Resources","Salary Sacrifice Schemes","R4400"
"Wolverhampton City Council","http://opendatacommunities.org/id/metropolitan-district-council/wolverhampton","714279","Tusker","SIN0000827677","412.33","Services - Professional Fees","130240795","06/02/2019","Human Resources","Salary Sacrifice Schemes","R4400"
"Wolverhampton City Council","http://opendatacommunities.org/id/metropolitan-district-council/wolverhampton","714279","Tusker","SIN0000807625","400.00","Services - Professional Fees","130241797","06/02/2019","Human Resources","Salary Sacrifice Schemes","R4400"
"Wolverhampton City Council","http://opendatacommunities.org/id/metropolitan-district-council/wolverhampton","714284","39 Essex Chambers","BALJITSIDHU223778","550.00","Services - Professional Fees","130245528","27/02/2019","Legal Services","Centralised External Legal Costs","R4400"
"Wolverhampton City Council","http://opendatacommunities.org/id/metropolitan-district-council/wolverhampton","714284","39 Essex Chambers","BS/SCP010893","1,540.00","Services - Professional Fees","130245529","27/02/2019","Legal Services","Centralised External Legal Costs","R4400"
"Wolverhampton City Council","http://opendatacommunities.org/id/metropolitan-district-council/wolverhampton","714309","Excel Tuition Services Ltd","1074","375.00","TPP - Alternative Provision of Education","130244708","20/02/2019","Special Educational Needs","SEN Education OOC","R5037"
"Wolverhampton City Council","http://opendatacommunities.org/id/metropolitan-district-council/wolverhampton","715677","Eversheds LLP","91696971","3,853.00","Services - Professional Fees","130240031","01/02/2019","Legal Services","Centralised External Legal Costs","R4400"
"Wolverhampton City Council","http://opendatacommunities.org/id/metropolitan-district-council/wolverhampton","715774","Shrewsbury and Telford Hospital NHS Trust","10130231","108.00","Parking Fees","130243089","06/02/2019","Community Financial Support","Macmillan Welfare Rights Service","R3410"
"Wolverhampton City Council","http://opendatacommunities.org/id/metropolitan-district-council/wolverhampton","715906","Mr Jonathan Auburn","100615","180.00","Services - Professional Fees","130242660","27/02/2019","Legal Services","Centralised External Legal Costs","R4400"
"Wolverhampton City Council","http://opendatacommunities.org/id/metropolitan-district-council/wolverhampton","715951","Kate Tilley","KT-W-01C-19(W-Q-76)","75.00","Services - Professional Fees","130245148","27/02/2019","Visitor Economy","Art Galleries - Schools Art SLA Service","R4400"
"Wolverhampton City Council","http://opendatacommunities.org/id/metropolitan-district-council/wolverhampton","715951","Kate Tilley","KT-W-01D-18(W-Q-76A)","62.50","Services - Professional Fees","130245149","27/02/2019","Visitor Economy","Learning Programme -  ACE NPO WAG","R4400"
"Wolverhampton City Council","http://opendatacommunities.org/id/metropolitan-district-council/wolverhampton","715951","Kate Tilley","KT-W-02A-18(W-Q-77)","75.00","Services - Professional Fees","130245151","27/02/2019","Visitor Economy","Art Galleries - Schools Art SLA Service","R4400"
"Wolverhampton City Council","http://opendatacommunities.org/id/metropolitan-district-council/wolverhampton","715951","Kate Tilley","KT-W-01-18(W-Q-72)","300.00","Services - Professional Fees","130242237","06/02/2019","Visitor Economy","Curatorial - Cultural Learning","R4400"
"Wolverhampton City Council","http://opendatacommunities.org/id/metropolitan-district-council/wolverhampton","715951","Kate Tilley","KT-W-01B-18(W-Q-74)","75.00","Services - Professional Fees","130242239","13/02/2019","Visitor Economy","Art Galleries - Schools Art SLA Service","R4400"
"Wolverhampton City Council","http://opendatacommunities.org/id/metropolitan-district-council/wolverhampton","715951","Kate Tilley","KT-W-01A-18(W-Q-73)","75.00","Services - Professional Fees","130242238","13/02/2019","Visitor Economy","Art Galleries - Schools Art SLA Service","R4400"
"Wolverhampton City Council","http://opendatacommunities.org/id/metropolitan-district-council/wolverhampton","715953","B.W.Y Canine Ltd","636","350.00","Services - Professional Fees","130244136","20/02/2019","Licensing","Private Hire Vehicles","R4400"
"Wolverhampton City Council","http://opendatacommunities.org/id/metropolitan-district-council/wolverhampton","715997","Cherry Kane-Horton","029 2016","154.00","Marketing \ Non-staff advertising","130172711","27/02/2019","Visitor Economy","Visitor Economy - Development","R4317"
"Wolverhampton City Council","http://opendatacommunities.org/id/metropolitan-district-council/wolverhampton","715997","Cherry Kane-Horton","029 2016","-154.00","Marketing \ Non-staff advertising","130172711","27/02/2019","Visitor Economy","Visitor Economy - Development","R4317"
"Wolverhampton City Council","http://opendatacommunities.org/id/metropolitan-district-council/wolverhampton","715997","Cherry Kane-Horton","029 2016","154.00","Marketing \ Non-staff advertising","130172711","27/02/2019","Visitor Economy","Visitor Economy - Development","R4317"
"Wolverhampton City Council","http://opendatacommunities.org/id/metropolitan-district-council/wolverhampton","716010","Kingdom Security Limited","0000501654","8,880.00","Services - Professional Fees","130243559","27/02/2019","Public Protection","Environmental Crime","R4400"
"Wolverhampton City Council","http://opendatacommunities.org/id/metropolitan-district-council/wolverhampton","716053","Impact Mail & Print (UK) Ltd","213647","85.00","Printing","130241803","15/02/2019","ICTS","Document Centre - General","R4300"
"Wolverhampton City Council","http://opendatacommunities.org/id/metropolitan-district-council/wolverhampton","716053","Impact Mail & Print (UK) Ltd","213648","378.84","Printing","130241804","15/02/2019","ICTS","Document Centre - General","R4300"
"Wolverhampton City Council","http://opendatacommunities.org/id/metropolitan-district-council/wolverhampton","716083","J. Harper & Sons (Leominster) Ltd","IN023191","6,654.82","Construction and Conversion","130206743","27/02/2019","-","Primary Expansion Programme","C1100"
"Wolverhampton City Council","http://opendatacommunities.org/id/metropolitan-district-council/wolverhampton","716120","Care For the Family","12664","270.00","Books","130242240","01/02/2019","Strengthening Families","EI Area 2- Bilston/Rocket pool","R4309"
"Wolverhampton City Council","http://opendatacommunities.org/id/metropolitan-district-council/wolverhampton","716125","Autostart Midlands Limited","082896","49.50","Equipment - Purchase","190557551","06/02/2019","Fleet Services","Fleet Management","R4000"
"Wolverhampton City Council","http://opendatacommunities.org/id/metropolitan-district-council/wolverhampton","716206","Blue Sky Corporate Finance Ltd","12066","14,918.75","Services - Consultants","130243319","13/02/2019","Land and Property Investment Support","Land Property Investment Fund Management Costs","R4404"
"Wolverhampton City Council","http://opendatacommunities.org/id/metropolitan-district-council/wolverhampton","716224","Homers Travel","481","3,400.00","Client Transport","130242834","06/02/2019","Special Educational Needs","Special - Transport","R3042"
"Wolverhampton City Council","http://opendatacommunities.org/id/metropolitan-district-council/wolverhampton","716224","Homers Travel","479","1,710.00","Client Transport","130242832","06/02/2019","Special Educational Needs","Special - Transport","R3042"
"Wolverhampton City Council","http://opendatacommunities.org/id/metropolitan-district-council/wolverhampton","716224","Homers Travel","485","1,905.40","Client Transport","130242838","06/02/2019","Special Educational Needs","Special - Transport","R3042"
"Wolverhampton City Council","http://opendatacommunities.org/id/metropolitan-district-council/wolverhampton","716224","Homers Travel","482","4,085.00","Client Transport","130242835","06/02/2019","Special Educational Needs","Special - Transport","R3042"
"Wolverhampton City Council","http://opendatacommunities.org/id/metropolitan-district-council/wolverhampton","716224","Homers Travel","480","950.00","Client Transport","130242833","06/02/2019","Special Educational Needs","Special - Transport","R3042"
"Wolverhampton City Council","http://opendatacommunities.org/id/metropolitan-district-council/wolverhampton","716224","Homers Travel","484","4,275.00","Client Transport","130242837","06/02/2019","Special Educational Needs","Special - Transport","R3042"
"Wolverhampton City Council","http://opendatacommunities.org/id/metropolitan-district-council/wolverhampton","716224","Homers Travel","483","4,465.00","Client Transport","130242836","06/02/2019","Special Educational Needs","Special - Transport","R3042"
"Wolverhampton City Council","http://opendatacommunities.org/id/metropolitan-district-council/wolverhampton","716227","Ascentis Awarding Body","59952","825.00","Exam Expenses (Non-Employee)","130220862","22/02/2019","Adult Education","Discretionary Fund","R4630"
"Wolverhampton City Council","http://opendatacommunities.org/id/metropolitan-district-council/wolverhampton","716227","Ascentis Awarding Body","61318","806.00","Exam Expenses (Non-Employee)","130243927","13/02/2019","Adult Education","Communication Studies","R4630"
"Wolverhampton City Council","http://opendatacommunities.org/id/metropolitan-district-council/wolverhampton","716227","Ascentis Awarding Body","63260","224.00","Exam Expenses (Non-Employee)","130242378","20/02/2019","Adult Education","Discretionary Fund","R4630"
"Wolverhampton City Council","http://opendatacommunities.org/id/metropolitan-district-council/wolverhampton","716227","Ascentis Awarding Body","62975","100.00","Exam Expenses (Non-Employee)","130242377","01/02/2019","Adult Education","Discretionary Fund","R4630"
"Wolverhampton City Council","http://opendatacommunities.org/id/metropolitan-district-council/wolverhampton","716227","Ascentis Awarding Body","63041","836.00","Exam Expenses (Non-Employee)","130240799","06/02/2019","Adult Education","Discretionary Fund","R4630"
"Wolverhampton City Council","http://opendatacommunities.org/id/metropolitan-district-council/wolverhampton","716227","Ascentis Awarding Body","63298","16.00","Exam Expenses (Non-Employee)","130242521","22/02/2019","Adult Education","Discretionary Fund","R4630"
"Wolverhampton City Council","http://opendatacommunities.org/id/metropolitan-district-council/wolverhampton","716227","Ascentis Awarding Body","63004","6,270.00","Exam Expenses (Non-Employee)","130243928","13/02/2019","Adult Education","Communication Studies","R4630"
"Wolverhampton City Council","http://opendatacommunities.org/id/metropolitan-district-council/wolverhampton","716246","One 4 You Services Ltd","7572A","104.25","Client Transport","130243320","27/02/2019","Special Educational Needs","Secondary- Transport","R3042"
"Wolverhampton City Council","http://opendatacommunities.org/id/metropolitan-district-council/wolverhampton","716246","One 4 You Services Ltd","7573","1,125.00","Client Transport","130242955","15/02/2019","Special Educational Needs","Special - Transport","R3042"
"Wolverhampton City Council","http://opendatacommunities.org/id/metropolitan-district-council/wolverhampton","716246","One 4 You Services Ltd","7571","2,463.16","Client Transport","130242953","20/02/2019","Special Educational Needs","Special - Transport","R3042"
"Wolverhampton City Council","http://opendatacommunities.org/id/metropolitan-district-council/wolverhampton","716246","One 4 You Services Ltd","7570","1,482.00","Client Transport","130242952","20/02/2019","Special Educational Needs","Special - Transport","R3042"
"Wolverhampton City Council","http://opendatacommunities.org/id/metropolitan-district-council/wolverhampton","716357","Carter Brown The Expert Service","147134","1,135.28","Services - Professional Fees","130244137","13/02/2019","Legal Services","Centralised External Legal Costs","R4400"
"Wolverhampton City Council","http://opendatacommunities.org/id/metropolitan-district-council/wolverhampton","716362","LHi Group Ltd/Lawrence Harvey","118632","4,488.75","Agency Staff","130239932","01/02/2019","Strategic Finance","Agresso System Support","R1100"
"Wolverhampton City Council","http://opendatacommunities.org/id/metropolitan-district-council/wolverhampton","716375","Ubiqus UK Ltd","723126","28.38","Services - Professional Fees","190565174","22/02/2019","Legal Services","Centralised External Legal Costs","R4400"
"Wolverhampton City Council","http://opendatacommunities.org/id/metropolitan-district-council/wolverhampton","716394","CPR Works Ltd","5793","1,728.00","Services - Professional Fees","130244710","27/02/2019","School Planning & Resources","Music Support Team","R4400"
"Wolverhampton City Council","http://opendatacommunities.org/id/metropolitan-district-council/wolverhampton","716394","CPR Works Ltd","5793","144.00","Services - Professional Fees","130244710","27/02/2019","School Planning & Resources","Music Support Team","R4400"
"Wolverhampton City Council","http://opendatacommunities.org/id/metropolitan-district-council/wolverhampton","716394","CPR Works Ltd","5794","480.00","Services - Professional Fees","130244711","27/02/2019","School Planning & Resources","Music Support Team","R4400"
"Wolverhampton City Council","http://opendatacommunities.org/id/metropolitan-district-council/wolverhampton","716394","CPR Works Ltd","5794","180.00","Services - Professional Fees","130244711","27/02/2019","School Planning & Resources","Music Support Team","R4400"
"Wolverhampton City Council","http://opendatacommunities.org/id/metropolitan-district-council/wolverhampton","716584","Atkins Limited","19003383","32,299.80","External Professional Fees","130242662","27/02/2019","-","South Side","C6002"
"Wolverhampton City Council","http://opendatacommunities.org/id/metropolitan-district-council/wolverhampton","716584","Atkins Limited","19003590","3,525.00","Services - Professional Fees","130242839","27/02/2019","Capital Programme","Capital Programme Team","R4400"
"Wolverhampton City Council","http://opendatacommunities.org/id/metropolitan-district-council/wolverhampton","716584","Atkins Limited","18041841","59,071.00","External Professional Fees","130242243","01/02/2019","-","Primary Expansion Programme","C6002"
"Wolverhampton City Council","http://opendatacommunities.org/id/metropolitan-district-council/wolverhampton","716584","Atkins Limited","18041842","38,022.00","External Professional Fees","130242244","01/02/2019","-","Primary Expansion Programme","C6002"
"Wolverhampton City Council","http://opendatacommunities.org/id/metropolitan-district-council/wolverhampton","716584","Atkins Limited","18041840","37,820.00","External Professional Fees","130242242","06/02/2019","-","Primary Expansion Programme","C6002"
"Wolverhampton City Council","http://opendatacommunities.org/id/metropolitan-district-council/wolverhampton","716584","Atkins Limited","19001008","10,000.00","Services - Professional Fees","130240800","13/02/2019","Procurement Services","Corporate Procurement Unit","R4400"
"Wolverhampton City Council","http://opendatacommunities.org/id/metropolitan-district-council/wolverhampton","716584","Atkins Limited","19004013","4,200.00","External Professional Fees","130242957","27/02/2019","-","Primary Expansion Programme","C6002"
"Wolverhampton City Council","http://opendatacommunities.org/id/metropolitan-district-council/wolverhampton","716588","Magna large Print Books","I109229","46.29","Books","130245367","27/02/2019","Local Economy","Global Budgets","R4309"
"Wolverhampton City Council","http://opendatacommunities.org/id/metropolitan-district-council/wolverhampton","716589","Elston Hall Multi-Academy Trust","Early Years Autumn term Final Payment and Spring Term Interim Payment","53,640.41","Grant Payments","190561946","15/02/2019","Central Education","Academy Early years","R4700"
"Wolverhampton City Council","http://opendatacommunities.org/id/metropolitan-district-council/wolverhampton","716594","Burke Bros Recovery","G37962","70.00","Services - Professional Fees","190562059","15/02/2019","Fleet Services","Fleet Management","R4400"
"Wolverhampton City Council","http://opendatacommunities.org/id/metropolitan-district-council/wolverhampton","716594","Burke Bros Recovery","G42109","70.00","Services - Professional Fees","190567419","27/02/2019","Fleet Services","Fleet Management","R4400"
"Wolverhampton City Council","http://opendatacommunities.org/id/metropolitan-district-council/wolverhampton","716594","Burke Bros Recovery","G41670","70.00","Services - Professional Fees","190558949","06/02/2019","Fleet Services","Fleet Management","R4400"
"Wolverhampton City Council","http://opendatacommunities.org/id/metropolitan-district-council/wolverhampton","716676","Wesco Limited","IX155808UK131062","251.40","Equipment - Purchase","130244251","15/02/2019","Special Educational Needs","SEN Early Years Team","R4000"
"Wolverhampton City Council","http://opendatacommunities.org/id/metropolitan-district-council/wolverhampton","716676","Wesco Limited","IX155808UK131062","13.60","Equipment - Purchase","130244251","15/02/2019","Special Educational Needs","SEN Early Years Team","R4000"
"Wolverhampton City Council","http://opendatacommunities.org/id/metropolitan-district-council/wolverhampton","716717","Pre-Paid Financial Services Ltd","12688-WOLVERHAMPTONCOUNCIL-0119","4,012.68","Services - Supplies and Services to service users","130242958","27/02/2019","Community Financial Support","Direct Payments Client Admin","R4408"
"Wolverhampton City Council","http://opendatacommunities.org/id/metropolitan-district-council/wolverhampton","716767","KINGSTON - Northern House Academy","NHAT_0676","1,482.67","TPP - Alternative Provision of Education","130241603","08/02/2019","Inclusion Support","Alternative Provision","R5037"
"Wolverhampton City Council","http://opendatacommunities.org/id/metropolitan-district-council/wolverhampton","716767","KINGSTON - Northern House Academy","Teachers Pay Grant 1819","2,213.00","Grant Payments","190559664","08/02/2019","Central Education","Additional Grant to Schools","R4700"
"Wolverhampton City Council","http://opendatacommunities.org/id/metropolitan-district-council/wolverhampton","716776","NHS Supply Chain","1019213681","182.60","TPP - Public Health Contracts","130244138","27/02/2019","Starting and Developing Well","Healthy Start to Life","R5060"
"Wolverhampton City Council","http://opendatacommunities.org/id/metropolitan-district-council/wolverhampton","716806","Peak Activity Services Ltd","3946","4,425.00","TPP - Alternative Provision of Education","130240802","13/02/2019","Special Educational Needs","SEN Education OOC","R5037"
"Wolverhampton City Council","http://opendatacommunities.org/id/metropolitan-district-council/wolverhampton","716806","Peak Activity Services Ltd","4036","4,425.00","TPP - Alternative Provision of Education","130240807","20/02/2019","Inclusion Support","Alternative Provision","R5037"
"Wolverhampton City Council","http://opendatacommunities.org/id/metropolitan-district-council/wolverhampton","716806","Peak Activity Services Ltd","3951","1,475.00","TPP - Alternative Provision of Education","130240806","20/02/2019","Inclusion Support","Alternative Provision","R5037"
"Wolverhampton City Council","http://opendatacommunities.org/id/metropolitan-district-council/wolverhampton","716806","Peak Activity Services Ltd","3993","7,375.00","TPP - Alternative Provision of Education","130244256","20/02/2019","Inclusion Support","Alternative Provision","R5037"
"Wolverhampton City Council","http://opendatacommunities.org/id/metropolitan-district-council/wolverhampton","716806","Peak Activity Services Ltd","3948","5,900.00","TPP - Alternative Provision of Education","130240803","20/02/2019","Inclusion Support","Alternative Provision","R5037"
"Wolverhampton City Council","http://opendatacommunities.org/id/metropolitan-district-council/wolverhampton","716806","Peak Activity Services Ltd","3949","5,900.00","TPP - Alternative Provision of Education","130240804","20/02/2019","Inclusion Support","Alternative Provision","R5037"
"Wolverhampton City Council","http://opendatacommunities.org/id/metropolitan-district-council/wolverhampton","716806","Peak Activity Services Ltd","3991","11,505.00","TPP - Alternative Provision of Education","130244254","20/02/2019","Inclusion Support","Alternative Provision","R5037"
"Wolverhampton City Council","http://opendatacommunities.org/id/metropolitan-district-council/wolverhampton","716806","Peak Activity Services Ltd","3986","19,470.00","TPP - Alternative Provision of Education","130244252","20/02/2019","Inclusion Support","Alternative Provision","R5037"
"Wolverhampton City Council","http://opendatacommunities.org/id/metropolitan-district-council/wolverhampton","716806","Peak Activity Services Ltd","3990","19,470.00","TPP - Alternative Provision of Education","130244253","20/02/2019","Inclusion Support","Alternative Provision","R5037"
"Wolverhampton City Council","http://opendatacommunities.org/id/metropolitan-district-council/wolverhampton","716806","Peak Activity Services Ltd","3950","5,900.00","TPP - Alternative Provision of Education","130240805","20/02/2019","Inclusion Support","Alternative Provision","R5037"
"Wolverhampton City Council","http://opendatacommunities.org/id/metropolitan-district-council/wolverhampton","716806","Peak Activity Services Ltd","4037","19,470.00","TPP - Alternative Provision of Education","130240808","20/02/2019","Inclusion Support","Alternative Provision","R5037"
"Wolverhampton City Council","http://opendatacommunities.org/id/metropolitan-district-council/wolverhampton","716806","Peak Activity Services Ltd","3992","19,470.00","TPP - Alternative Provision of Education","130244255","20/02/2019","Inclusion Support","Alternative Provision","R5037"
"Wolverhampton City Council","http://opendatacommunities.org/id/metropolitan-district-council/wolverhampton","716806","Peak Activity Services Ltd","3994","19,470.00","TPP - Alternative Provision of Education","130244257","20/02/2019","Inclusion Support","Alternative Provision","R5037"
"Wolverhampton City Council","http://opendatacommunities.org/id/metropolitan-district-council/wolverhampton","716911","24 - Seven Cooling","275003","222.88","R&M - Departmental planned (external)","130241321","13/02/2019","Bereavement Services","Coroners","R2001"
"Wolverhampton City Council","http://opendatacommunities.org/id/metropolitan-district-council/wolverhampton","716985","Potton Kare Services Ltd","P19905920190215","212.20","Client Allowances","190562744","20/02/2019","Children & Young People In Care","Looked After Team 1","R6301"
"Wolverhampton City Council","http://opendatacommunities.org/id/metropolitan-district-council/wolverhampton","716985","Potton Kare Services Ltd","P19833720190208","70.10","Client Allowances","190560490","13/02/2019","Children & Young People In Care","Looked After Team 1","R6301"
"Wolverhampton City Council","http://opendatacommunities.org/id/metropolitan-district-council/wolverhampton","717004","Highfields Academy School","P19757920190201","600.00","Grant Payments to Individuals","190557607","06/02/2019","Inclusion Support","Pupil Premium","R6402"
"Wolverhampton City Council","http://opendatacommunities.org/id/metropolitan-district-council/wolverhampton","717040","Wolv Vocational Training Ctr (Learning Partnership Trust)","Teachers Pay Grant 1819","1,475.00","Grant Payments","190559664","08/02/2019","Central Education","Additional Grant to Schools","R4700"
"Wolverhampton City Council","http://opendatacommunities.org/id/metropolitan-district-council/wolverhampton","717045","Exactrak - Avery Weigh Tronix","SLS/50357303","495.00","Equipment - R & M","130243092","27/02/2019","Highways Maintenance","Winter Maintenance","R4003"
"Wolverhampton City Council","http://opendatacommunities.org/id/metropolitan-district-council/wolverhampton","717046","NW Environmental Limited","00180","700.00","Services - Professional Fees","130242522","27/02/2019","City Development","Blue Network (ERDF)","R4400"
"Wolverhampton City Council","http://opendatacommunities.org/id/metropolitan-district-council/wolverhampton","717085","Constantine Limited","1190031","2,000.00","Services - Professional Fees","130242084","20/02/2019","Visitor Economy","BP Portrait Prize 2018 -  ACE NPO WAG","R4400"
"Wolverhampton City Council","http://opendatacommunities.org/id/metropolitan-district-council/wolverhampton","717089","Mr Tony Watkin","172116/15022018","5,300.00","Services - Professional Fees","130241059","01/02/2019","Public Protection","Trading Standards","R4400"
"Wolverhampton City Council","http://opendatacommunities.org/id/metropolitan-district-council/wolverhampton","717109","Westcroft School","Teachers Pay Grant 1819","9,589.00","Grant Payments","190559664","08/02/2019","Central Education","Additional Grant to Schools","R4700"
"Wolverhampton City Council","http://opendatacommunities.org/id/metropolitan-district-council/wolverhampton","717109","Westcroft School","5100147","7,234.98","Grant Payments","130245156","22/02/2019","Special Educational Needs","SEN Additionality","R4700"
"Wolverhampton City Council","http://opendatacommunities.org/id/metropolitan-district-council/wolverhampton","717125","New Chapters Fostercare","P198208 03031920190211","2,775.20","TPP - Placement Foster Care Agency","190560770","13/02/2019","Children & Young People In Care","Out of City Placements","R5602"
"Wolverhampton City Council","http://opendatacommunities.org/id/metropolitan-district-council/wolverhampton","717125","New Chapters Fostercare","P198208 03031920190211","2,628.00","TPP - Placement Foster Care Agency","190560770","13/02/2019","Children & Young People In Care","Out of City Placements","R5602"
"Wolverhampton City Council","http://opendatacommunities.org/id/metropolitan-district-council/wolverhampton","717125","New Chapters Fostercare","P198208 03031920190211","2,759.32","TPP - Placement Foster Care Agency","190560770","13/02/2019","Children & Young People In Care","Out of City Placements","R5602"
"Wolverhampton City Council","http://opendatacommunities.org/id/metropolitan-district-council/wolverhampton","717125","New Chapters Fostercare","P198208 03031920190211","2,843.36","TPP - Placement Foster Care Agency","190560770","13/02/2019","Children & Young People In Care","Out of City Placements","R5602"
"Wolverhampton City Council","http://opendatacommunities.org/id/metropolitan-district-council/wolverhampton","717134","Focus Ecology Ltd","3093","935.00","Construction and Conversion","130242379","22/02/2019","-","Bilston Urban Village","C1100"
"Wolverhampton City Council","http://opendatacommunities.org/id/metropolitan-district-council/wolverhampton","717134","Focus Ecology Ltd","3086","889.00","Construction and Conversion","130242246","22/02/2019","-","Bilston Urban Village","C1100"
"Wolverhampton City Council","http://opendatacommunities.org/id/metropolitan-district-council/wolverhampton","717178","London Midland","112578","31,685.00","External Professional Fees","130198952","15/02/2019","-","GF - Interchange - Ph2 Train Station/MSCP/Metro Extension","C6002"
"Wolverhampton City Council","http://opendatacommunities.org/id/metropolitan-district-council/wolverhampton","717189","Bromford Housing Group Limited","P198363 03031920190211","4,537.96","TPP - Residential Care - Long Term","190561666","14/02/2019","Learning Disabilities Care Purchasing","LD Care Purchasing (Spot Placements)","R5400"
"Wolverhampton City Council","http://opendatacommunities.org/id/metropolitan-district-council/wolverhampton","717189","Bromford Housing Group Limited","P198363 03031920190211","4,537.96","TPP - Residential Care - Long Term","190561666","14/02/2019","Learning Disabilities Care Purchasing","LD Care Purchasing (Spot Placements)","R5400"
"Wolverhampton City Council","http://opendatacommunities.org/id/metropolitan-district-council/wolverhampton","717189","Bromford Housing Group Limited","P198363 03031920190211","5,192.00","TPP - Residential Care - Short Term","190561666","14/02/2019","Learning Disabilities Care Purchasing","LD Care Purchasing (Spot Placements)","R5401"
"Wolverhampton City Council","http://opendatacommunities.org/id/metropolitan-district-council/wolverhampton","717189","Bromford Housing Group Limited","P198363 03031920190211","-4,374.00","TPP - Residential Care - Long Term","190561666","14/02/2019","Learning Disabilities Care Purchasing","LD Care Purchasing (Spot Placements)","R5400"
"Wolverhampton City Council","http://opendatacommunities.org/id/metropolitan-district-council/wolverhampton","717189","Bromford Housing Group Limited","P198363 03031920190211","4,537.96","TPP - Residential Care - Long Term","190561666","14/02/2019","Learning Disabilities Care Purchasing","LD Care Purchasing (Spot Placements)","R5400"
"Wolverhampton City Council","http://opendatacommunities.org/id/metropolitan-district-council/wolverhampton","717189","Bromford Housing Group Limited","P198363 03031920190211","4,537.96","TPP - Residential Care - Long Term","190561666","14/02/2019","Learning Disabilities Care Purchasing","LD Care Purchasing (Spot Placements)","R5400"
"Wolverhampton City Council","http://opendatacommunities.org/id/metropolitan-district-council/wolverhampton","717189","Bromford Housing Group Limited","P198363 03031920190211","-1,296.56","TPP - Residential Care - Long Term","190561666","14/02/2019","Learning Disabilities Care Purchasing","LD Care Purchasing (Spot Placements)","R5400"
"Wolverhampton City Council","http://opendatacommunities.org/id/metropolitan-district-council/wolverhampton","717191","Movecorp Limited","110338","1,114.00","Storage","130245369","27/02/2019","Adult Education","Caf�","R4910"
"Wolverhampton City Council","http://opendatacommunities.org/id/metropolitan-district-council/wolverhampton","717191","Movecorp Limited","110716","912.70","Storage","130240443","06/02/2019","Facilities Management","Civic Centre","R4910"
"Wolverhampton City Council","http://opendatacommunities.org/id/metropolitan-district-council/wolverhampton","717191","Movecorp Limited","110356","383.00","Storage","130245157","22/02/2019","Adult Education","Beckminster","R4910"
"Wolverhampton City Council","http://opendatacommunities.org/id/metropolitan-district-council/wolverhampton","717191","Movecorp Limited","110941","50.00","Storage","130241420","13/02/2019","Older People Provider Services","ILS Stores","R4910"
"Wolverhampton City Council","http://opendatacommunities.org/id/metropolitan-district-council/wolverhampton","717191","Movecorp Limited","110823","216.00","Storage","130240809","13/02/2019","Safeguarding","Court of Protection, Funerals and Protection of Property","R4910"
"Wolverhampton City Council","http://opendatacommunities.org/id/metropolitan-district-council/wolverhampton","717191","Movecorp Limited","110739","855.00","Storage","130240589","06/02/2019","Corporate Asset Management","Strategic Asset Management Team","R4910"
"Wolverhampton City Council","http://opendatacommunities.org/id/metropolitan-district-council/wolverhampton","717191","Movecorp Limited","110678","1,296.00","Storage","130240342","01/02/2019","Visitor Economy","Civic Halls - CHIP","R4910"
"Wolverhampton City Council","http://opendatacommunities.org/id/metropolitan-district-council/wolverhampton","717191","Movecorp Limited","110640","3,780.00","Storage","130240034","01/02/2019","Visitor Economy","Civic Halls - CHIP","R4910"
"Wolverhampton City Council","http://opendatacommunities.org/id/metropolitan-district-council/wolverhampton","717234","NEW PARK - Northern House Academy","Teachers Pay Grant 1819","6,270.00","Grant Payments","190559664","08/02/2019","Central Education","Additional Grant to Schools","R4700"
"Wolverhampton City Council","http://opendatacommunities.org/id/metropolitan-district-council/wolverhampton","717234","NEW PARK - Northern House Academy","NHAT_0547","19,157.00","TPP - Social Care Support Services","130242247","06/02/2019","Children & Young People In Care","Short Breaks","R5501"
"Wolverhampton City Council","http://opendatacommunities.org/id/metropolitan-district-council/wolverhampton","717234","NEW PARK - Northern House Academy","NHAT_0665","10,608.65","TPP - Alternative Provision of Education","130243093","13/02/2019","Special Educational Needs","SEN Education OOC","R5037"
"Wolverhampton City Council","http://opendatacommunities.org/id/metropolitan-district-council/wolverhampton","717336","P W Media & Publishing Ltd","38939","475.00","Marketing \ Non-staff advertising","130242959","20/02/2019","Visitor Economy","Arts Publicity","R4317"
"Wolverhampton City Council","http://opendatacommunities.org/id/metropolitan-district-council/wolverhampton","717378","Grant Thornton UK LLP","8893363","36,465.00","Services - Professional Fees","130242248","01/02/2019","Central Corporate Budgets","Corporate Management","R4400"
"Wolverhampton City Council","http://opendatacommunities.org/id/metropolitan-district-council/wolverhampton","717378","Grant Thornton UK LLP","8886909","14,128.00","Services - Professional Fees","130241623","13/02/2019","Central Corporate Budgets","Corporate Management","R4400"
"Wolverhampton City Council","http://opendatacommunities.org/id/metropolitan-district-council/wolverhampton","717404","Manor Multi Academy Trust - Current a/c (payment from LA)","Early Years Autumn term Final Payment and Spring Term Interim Payment","12,972.10","Grant Payments","190561946","15/02/2019","Central Education","Academy Early years","R4700"
"Wolverhampton City Council","http://opendatacommunities.org/id/metropolitan-district-council/wolverhampton","717404","Manor Multi Academy Trust - Current a/c (payment from LA)","Early Years Autumn term Final Payment and Spring Term Interim Payment","12,972.10","Grant Payments","190561946","15/02/2019","Central Education","Academy Early years","R4700"
"Wolverhampton City Council","http://opendatacommunities.org/id/metropolitan-district-council/wolverhampton","717404","Manor Multi Academy Trust - Current a/c (payment from LA)","Early Years Autumn term Final Payment and Spring Term Interim Payment.","66,621.19","Grant Payments","190561946","15/02/2019","Central Education","Academy Early years","R4700"
"Wolverhampton City Council","http://opendatacommunities.org/id/metropolitan-district-council/wolverhampton","717404","Manor Multi Academy Trust - Current a/c (payment from LA)","Early Years Autumn term Final Payment and Spring Term Interim Payment.","66,621.19","Grant Payments","190561946","15/02/2019","Central Education","Academy Early years","R4700"
"Wolverhampton City Council","http://opendatacommunities.org/id/metropolitan-district-council/wolverhampton","717411","Square Pegs Round Holes C.I.C","2004","6,790.00","TPP - Social Care Support Services","130242960","20/02/2019","Strengthening Families","Transformation Challenge Award","R5501"
"Wolverhampton City Council","http://opendatacommunities.org/id/metropolitan-district-council/wolverhampton","717411","Square Pegs Round Holes C.I.C","2003","7,200.00","Services - Supplies and Services to service users","130244712","20/02/2019","Strengthening Families","EI Area 7 - Low Hill","R4408"
"Wolverhampton City Council","http://opendatacommunities.org/id/metropolitan-district-council/wolverhampton","717421","The Child Psychology Service","1893","445.24","Direct Work With Children","130242664","27/02/2019","Children & Young People In Care","Adoption Support Fund","R6310"
"Wolverhampton City Council","http://opendatacommunities.org/id/metropolitan-district-council/wolverhampton","717421","The Child Psychology Service","1893","420.76","Direct Work With Children","130242664","27/02/2019","Children & Young People In Care","Adoption and Residence Team & Allowances","R6310"
"Wolverhampton City Council","http://opendatacommunities.org/id/metropolitan-district-council/wolverhampton","717453","SHB Hire Ltd","11057946","440.00","Hire of Vehicles","190566324","27/02/2019","Fleet Services","Fleet Management","R3200"
"Wolverhampton City Council","http://opendatacommunities.org/id/metropolitan-district-council/wolverhampton","717453","SHB Hire Ltd","11046900","462.00","Hire of Vehicles","190566321","27/02/2019","Fleet Services","Fleet Management","R3200"
"Wolverhampton City Council","http://opendatacommunities.org/id/metropolitan-district-council/wolverhampton","717453","SHB Hire Ltd","11057947","440.00","Hire of Vehicles","190566325","27/02/2019","Fleet Services","Fleet Management","R3200"
"Wolverhampton City Council","http://opendatacommunities.org/id/metropolitan-district-council/wolverhampton","717453","SHB Hire Ltd","11057948","440.00","Hire of Vehicles","190566326","27/02/2019","Fleet Services","Fleet Management","R3200"
"Wolverhampton City Council","http://opendatacommunities.org/id/metropolitan-district-council/wolverhampton","717453","SHB Hire Ltd","11046902","462.00","Hire of Vehicles","190566323","27/02/2019","Fleet Services","Fleet Management","R3200"
"Wolverhampton City Council","http://opendatacommunities.org/id/metropolitan-district-council/wolverhampton","717453","SHB Hire Ltd","11046901","462.00","Hire of Vehicles","190566322","27/02/2019","Fleet Services","Fleet Management","R3200"
"Wolverhampton City Council","http://opendatacommunities.org/id/metropolitan-district-council/wolverhampton","717457","Connect Ed Partnership","INV-0442","75.00","Training Expenses","130242523","06/02/2019","School Improvement","School Improvement","R1650"
"Wolverhampton City Council","http://opendatacommunities.org/id/metropolitan-district-council/wolverhampton","717457","Connect Ed Partnership","INV-0442","75.00","Training Expenses","130242523","06/02/2019","School Planning & Resources","School Organisation","R1650"
"Wolverhampton City Council","http://opendatacommunities.org/id/metropolitan-district-council/wolverhampton","717457","Connect Ed Partnership","INV-0442","75.00","Training Expenses","130242523","06/02/2019","School Improvement","Governors Support Team","R1650"
"Wolverhampton City Council","http://opendatacommunities.org/id/metropolitan-district-council/wolverhampton","717457","Connect Ed Partnership","INV-0442","75.00","Training Expenses","130242523","06/02/2019","Special Educational Needs","SEN Commissioning Team","R1650"
"Wolverhampton City Council","http://opendatacommunities.org/id/metropolitan-district-council/wolverhampton","717476","JAS Associates Ltd","CWC1009","373.25","Computing - Purchase of Hardware","130243930","13/02/2019","Operation & Maintenance of Existing Network","Traffic Signals","R4530"
"Wolverhampton City Council","http://opendatacommunities.org/id/metropolitan-district-council/wolverhampton","717550","Bulleys","W13271","1,125.00","Services - Professional Fees","130242249","22/02/2019","City Development","City Development  - Core Team","R4400"
"Wolverhampton City Council","http://opendatacommunities.org/id/metropolitan-district-council/wolverhampton","717550","Bulleys","W13247","450.00","Services - Professional Fees","130240590","06/02/2019","Corporate Asset Management","Strategic Asset Management Team","R4400"
"Wolverhampton City Council","http://opendatacommunities.org/id/metropolitan-district-council/wolverhampton","717591","Engaging Communities Staffordshire CIC","392","16,190.75","TPP - Social Care Support Services","130242961","13/02/2019","Strategic Commissioning","Local Reform and Community Voices Grant","R5501"
"Wolverhampton City Council","http://opendatacommunities.org/id/metropolitan-district-council/wolverhampton","717591","Engaging Communities Staffordshire CIC","393","4,321.08","TPP - Social Care Support Services","130242962","13/02/2019","Strategic Commissioning","Local Reform and Community Voices Grant","R5501"
"Wolverhampton City Council","http://opendatacommunities.org/id/metropolitan-district-council/wolverhampton","717602","Cherry Trees School","CTSI115","2,886.73","TPP - Independent Schools","130244833","20/02/2019","Special Educational Needs","SEN Education OOC","R5036"
"Wolverhampton City Council","http://opendatacommunities.org/id/metropolitan-district-council/wolverhampton","717605","Little Walkers Day Nursery","5751","110.00","TPP - Child Care provided for client","130242381","01/02/2019","Adult Education","Discretionary Fund","R5034"
"Wolverhampton City Council","http://opendatacommunities.org/id/metropolitan-district-council/wolverhampton","717652","Scotts Hire Limited","206427","342.00","Equipment - Hire","130244142","27/02/2019","Bereavement Services","Cemeteries","R4001"
"Wolverhampton City Council","http://opendatacommunities.org/id/metropolitan-district-council/wolverhampton","717652","Scotts Hire Limited","206426","342.00","Equipment - Hire","130244141","27/02/2019","Bereavement Services","Cemeteries","R4001"
"Wolverhampton City Council","http://opendatacommunities.org/id/metropolitan-district-council/wolverhampton","717654","Coram Baaf Adoption and Fostering Academy Ltd","pf142003","42.50","Publications","130195424","22/02/2019","Children & Young People In Care","Adoption and Residence Team & Allowances","R4310"
"Wolverhampton City Council","http://opendatacommunities.org/id/metropolitan-district-council/wolverhampton","717654","Coram Baaf Adoption and Fostering Academy Ltd","pf142003","7.50","Publications","130195424","22/02/2019","Children & Young People In Care","Adoption and Residence Team & Allowances","R4310"
"Wolverhampton City Council","http://opendatacommunities.org/id/metropolitan-district-council/wolverhampton","717656","Perry Hall Multi Academy Trust T/A Dunstall Hill Primary Sch","Early Years Autumn term Final Payment and Spring Term Interim Payment","38,302.30","Grant Payments","190561946","15/02/2019","Central Education","Academy Early years","R4700"
"Wolverhampton City Council","http://opendatacommunities.org/id/metropolitan-district-council/wolverhampton","717658","Elston Hall T/A Palmers Cross Primary","Early Years Autumn term Final Payment and Spring Term Interim Payment","15,352.87","Grant Payments","190561946","15/02/2019","Central Education","Academy Early years","R4700"
"Wolverhampton City Council","http://opendatacommunities.org/id/metropolitan-district-council/wolverhampton","717702","Matthews Environmental Solutions Limited","92337111","856.50","R&M - Departmental planned (external)","130241323","13/02/2019","Bereavement Services","Crematorium","R2001"
"Wolverhampton City Council","http://opendatacommunities.org/id/metropolitan-district-council/wolverhampton","717704","St Martins Multi Academy T/A Grove Academy","Early Years Autumn term Final Payment and Spring Term Interim Payment","12,647.81","Grant Payments","190561946","15/02/2019","Central Education","Academy Early years","R4700"
"Wolverhampton City Council","http://opendatacommunities.org/id/metropolitan-district-council/wolverhampton","717737","Direct Digital Controls Limited","5548","1,114.74","R&M - Departmental planned (external)","130242252","22/02/2019","Maintenance Programme","Centralised R&M","R2001"
"Wolverhampton City Council","http://opendatacommunities.org/id/metropolitan-district-council/wolverhampton","717737","Direct Digital Controls Limited","5539","1,941.00","R&M - Departmental planned (internal)","130242251","22/02/2019","Maintenance Programme","Centralised R&M","R2000"
"Wolverhampton City Council","http://opendatacommunities.org/id/metropolitan-district-council/wolverhampton","717737","Direct Digital Controls Limited","5549","1,486.30","R&M - Departmental planned (external)","130242665","22/02/2019","Maintenance Programme","Centralised R&M","R2001"
"Wolverhampton City Council","http://opendatacommunities.org/id/metropolitan-district-council/wolverhampton","717743","Sanderson Funerals","HMCC034","553.18","Hire of Vehicles","130243562","27/02/2019","Public Service Reform","Coroners Service","R3200"
"Wolverhampton City Council","http://opendatacommunities.org/id/metropolitan-district-council/wolverhampton","717743","Sanderson Funerals","HMCH034","571.00","Hire of Vehicles","130243563","27/02/2019","Public Service Reform","Coroners Service","R3200"
"Wolverhampton City Council","http://opendatacommunities.org/id/metropolitan-district-council/wolverhampton","717763","ACRE Development Consulting","C1058","-5,650.00","Services - Professional Fees","130240343","06/02/2019","City Development","City Development  - Core Team","R4400"
"Wolverhampton City Council","http://opendatacommunities.org/id/metropolitan-district-council/wolverhampton","717763","ACRE Development Consulting","C1059","2,100.00","Services - Professional Fees","130240444","06/02/2019","City Development","Industrial Sites","R4400"
"Wolverhampton City Council","http://opendatacommunities.org/id/metropolitan-district-council/wolverhampton","717763","ACRE Development Consulting","C1057","4,655.00","Services - Professional Fees","130239462","06/02/2019","City Development","City Development  - Core Team","R4400"
"Wolverhampton City Council","http://opendatacommunities.org/id/metropolitan-district-council/wolverhampton","717763","ACRE Development Consulting","C1058 - Credit Correction","5,650.00","Services - Professional Fees","130243381","08/02/2019","City Development","City Development  - Core Team","R4400"
"Wolverhampton City Council","http://opendatacommunities.org/id/metropolitan-district-council/wolverhampton","717795","Bramble Hub Limited","8510","1,105.56","Services - General Licences","130242666","27/02/2019","Leisure Services","WV Active Business Support","R4402"
"Wolverhampton City Council","http://opendatacommunities.org/id/metropolitan-district-council/wolverhampton","717845","Philip Kolvin QC","142791","2,800.00","Services - Professional Fees","130241060","13/02/2019","Licensing","Private Hire Vehicles","R4400"
"Wolverhampton City Council","http://opendatacommunities.org/id/metropolitan-district-council/wolverhampton","717845","Philip Kolvin QC","140136","1,200.00","Services - Professional Fees","130241806","20/02/2019","Licensing","Private Hire Drivers","R4400"
"Wolverhampton City Council","http://opendatacommunities.org/id/metropolitan-district-council/wolverhampton","717853","Destitute Plus Account","Jan 2019","3,565.25","Financial Assistance In Exceptional Circumstances","190565924","27/02/2019","Community Financial Support","Destitute Plus","R6311"
"Wolverhampton City Council","http://opendatacommunities.org/id/metropolitan-district-council/wolverhampton","717863","Donna Widdows","5","540.00","TPP - Child Care provided for client","130242253","22/02/2019","Adult Education","Discretionary Fund","R5034"
"Wolverhampton City Council","http://opendatacommunities.org/id/metropolitan-district-council/wolverhampton","717863","Donna Widdows","NEF Spring 19 February","153.00","TPP - Private Nursery Education Funding","190565402","22/02/2019","Early Years","Early Years Universal Entitlement for 3 and 4 Year Olds","R5035"
"Wolverhampton City Council","http://opendatacommunities.org/id/metropolitan-district-council/wolverhampton","717870","Castle Blinds & Curtains","27762","113.61","Equipment - Purchase","130245531","27/02/2019","Special Educational Needs","SEN Early Years Team","R4000"
"Wolverhampton City Council","http://opendatacommunities.org/id/metropolitan-district-council/wolverhampton","717890","Preventx Limited","PY397927","16.00","TPP - Public Health Contracts","130239626","06/02/2019","Starting and Developing Well","Sexual Health","R5060"
"Wolverhampton City Council","http://opendatacommunities.org/id/metropolitan-district-council/wolverhampton","717932","Servelec Synergy Limited","0033602088","4,221.00","Computing - Purchase of Software","130240810","08/02/2019","Strengthening Families","HOS Early Intervention","R4531"
"Wolverhampton City Council","http://opendatacommunities.org/id/metropolitan-district-council/wolverhampton","717962","The Korn Ferry Hay Group Ltd","1195034527","550.00","Services - Professional Fees","130240593","06/02/2019","Director of Children�s Services","Children & Young People Support Costs","R4400"
"Wolverhampton City Council","http://opendatacommunities.org/id/metropolitan-district-council/wolverhampton","717980","Phormium Ltd t/a Brannie Ties","4827","181.50","Clothing / Uniforms","130241325","13/02/2019","Local Economy","Global Budgets","R4201"
"Wolverhampton City Council","http://opendatacommunities.org/id/metropolitan-district-council/wolverhampton","717980","Phormium Ltd t/a Brannie Ties","4827","458.50","Clothing / Uniforms","130241325","13/02/2019","Local Economy","Global Budgets","R4201"
"Wolverhampton City Council","http://opendatacommunities.org/id/metropolitan-district-council/wolverhampton","717980","Phormium Ltd t/a Brannie Ties","4827","10.00","Clothing / Uniforms","130241325","13/02/2019","Local Economy","Global Budgets","R4201"
"Wolverhampton City Council","http://opendatacommunities.org/id/metropolitan-district-council/wolverhampton","717995","Barnardo Services Limited","242002930","2,500.00","TPP - Short Breaks","130240344","06/02/2019","Children & Young People In Care","Short Breaks","R5500"
"Wolverhampton City Council","http://opendatacommunities.org/id/metropolitan-district-council/wolverhampton","718020","Centre for Assessment Ltd","6038939","1,120.00","Services - Professional Fees","190565173","22/02/2019","Legal Services","Legal Services","R4400"
"Wolverhampton City Council","http://opendatacommunities.org/id/metropolitan-district-council/wolverhampton","718024","1st Planner Ltd","RT319","11,000.00","Services - Professional Fees","130243094","06/02/2019","School Planning & Resources","1st Planner - School Sufficiency","R4400"
"Wolverhampton City Council","http://opendatacommunities.org/id/metropolitan-district-council/wolverhampton","718024","1st Planner Ltd","RT316","15,050.00","Services - Professional Fees","130244144","13/02/2019","School Planning & Resources","1st Planner - School Sufficiency","R4400"
"Wolverhampton City Council","http://opendatacommunities.org/id/metropolitan-district-council/wolverhampton","718024","1st Planner Ltd","RT311","18,300.00","Services - Professional Fees","130244143","13/02/2019","School Planning & Resources","1st Planner - School Sufficiency","R4400"
"Wolverhampton City Council","http://opendatacommunities.org/id/metropolitan-district-council/wolverhampton","718104","Lancaster Jaguar Wolverhampton","55018684","64.50","Services - Professional Fees","190563619","20/02/2019","Fleet Services","Fleet Management","R4400"
"Wolverhampton City Council","http://opendatacommunities.org/id/metropolitan-district-council/wolverhampton","718179","Turfleet Hire Ltd","201227","-900.00","Hire of Plant","130208591","06/02/2019","Environmental Maintenance","Ground Maintenance West","R3201"
"Wolverhampton City Council","http://opendatacommunities.org/id/metropolitan-district-council/wolverhampton","718179","Turfleet Hire Ltd","370210","965.00","Hire of Plant","130240345","06/02/2019","Environmental Maintenance","Ground Maintenance East","R3201"
"Wolverhampton City Council","http://opendatacommunities.org/id/metropolitan-district-council/wolverhampton","718179","Turfleet Hire Ltd","370210","65.00","Comms - Postage","130240345","06/02/2019","Environmental Maintenance","Ground Maintenance East","R4503"
"Wolverhampton City Council","http://opendatacommunities.org/id/metropolitan-district-council/wolverhampton","718215","Straight Manufacturing Ltd","0000042210","79.95","Services - Fees and Charges","130244363","20/02/2019","Waste and Recycling Service","Waste Collection and Recycling Service - General","R4401"
"Wolverhampton City Council","http://opendatacommunities.org/id/metropolitan-district-council/wolverhampton","718237","Rollover","SI651555","274.05","Provisions (Resale)","130241063","20/02/2019","Leisure Services","WV Active Catering","R4102"
"Wolverhampton City Council","http://opendatacommunities.org/id/metropolitan-district-council/wolverhampton","718242","Talbots Law","73298","833.33","Services - Professional Fees","190560535","13/02/2019","Legal Services","Centralised External Legal Costs","R4400"
"Wolverhampton City Council","http://opendatacommunities.org/id/metropolitan-district-council/wolverhampton","718247","Carrie Slawinska","CS028","955.31","Services - Professional Fees","130241064","13/02/2019","Visitor Economy","Touring Cost  - ACE NPO","R4400"
"Wolverhampton City Council","http://opendatacommunities.org/id/metropolitan-district-council/wolverhampton","718266","ELS Exterior Lighting Solutions (UK) Limited","9747","688.00","Materials","130241807","20/02/2019","Street Lighting","Street Lighting Maintenance","R4007"
"Wolverhampton City Council","http://opendatacommunities.org/id/metropolitan-district-council/wolverhampton","718266","ELS Exterior Lighting Solutions (UK) Limited","9747","809.50","Materials","130241807","20/02/2019","Street Lighting","Street Lighting Maintenance","R4007"
"Wolverhampton City Council","http://opendatacommunities.org/id/metropolitan-district-council/wolverhampton","718292","First Aid Warehouse","387221","60.00","Materials","130240811","06/02/2019","Waste and Recycling Service","Waste Man.Partnership-Environmental Team","R4007"
"Wolverhampton City Council","http://opendatacommunities.org/id/metropolitan-district-council/wolverhampton","718292","First Aid Warehouse","390944","32.00","Materials","130242963","27/02/2019","Leisure Services","Bert Williams Leisure Centre","R4007"
"Wolverhampton City Council","http://opendatacommunities.org/id/metropolitan-district-council/wolverhampton","718292","First Aid Warehouse","390944","21.50","Materials","130242963","27/02/2019","Leisure Services","Bert Williams Leisure Centre","R4007"
"Wolverhampton City Council","http://opendatacommunities.org/id/metropolitan-district-council/wolverhampton","718292","First Aid Warehouse","390944","24.06","Materials","130242963","27/02/2019","Leisure Services","Bert Williams Leisure Centre","R4007"
"Wolverhampton City Council","http://opendatacommunities.org/id/metropolitan-district-council/wolverhampton","718292","First Aid Warehouse","390421","26.36","Materials","130242844","27/02/2019","Older People Provider Services","Bradley Lodge Resource Centre","R4007"
"Wolverhampton City Council","http://opendatacommunities.org/id/metropolitan-district-council/wolverhampton","718292","First Aid Warehouse","390421","5.40","Materials","130242844","27/02/2019","Older People Provider Services","Bradley Lodge Resource Centre","R4007"
"Wolverhampton City Council","http://opendatacommunities.org/id/metropolitan-district-council/wolverhampton","718292","First Aid Warehouse","386309","15.11","Materials","130241522","01/02/2019","Mental Health Assesment & Care Management","Mental Health Assessment & Care Management","R4007"
"Wolverhampton City Council","http://opendatacommunities.org/id/metropolitan-district-council/wolverhampton","718304","St Johns B&B - Tunbridge Property LTD","P19924420190219","700.00","TPP - Accommodation","190563637","20/02/2019","Community Financial Support","Destitute Plus","R5603"
"Wolverhampton City Council","http://opendatacommunities.org/id/metropolitan-district-council/wolverhampton","718304","St Johns B&B - Tunbridge Property LTD","P19899620190214","700.00","TPP - Accommodation","190562064","15/02/2019","Community Financial Support","Destitute Plus","R5603"
"Wolverhampton City Council","http://opendatacommunities.org/id/metropolitan-district-council/wolverhampton","718304","St Johns B&B - Tunbridge Property LTD","P19899620190214","350.00","TPP - Accommodation","190562064","15/02/2019","Community Financial Support","Destitute Plus","R5603"
"Wolverhampton City Council","http://opendatacommunities.org/id/metropolitan-district-council/wolverhampton","718304","St Johns B&B - Tunbridge Property LTD","P19899620190214","700.00","TPP - Accommodation","190562064","15/02/2019","Community Financial Support","Destitute Plus","R5603"
"Wolverhampton City Council","http://opendatacommunities.org/id/metropolitan-district-council/wolverhampton","718321","London Hire Ltd","INV00040859","924.00","Hire of Vehicles","190560473","13/02/2019","Fleet Services","Fleet Management","R3200"
"Wolverhampton City Council","http://opendatacommunities.org/id/metropolitan-district-council/wolverhampton","718321","London Hire Ltd","INV00040858","924.00","Hire of Vehicles","190560472","13/02/2019","Fleet Services","Fleet Management","R3200"
"Wolverhampton City Council","http://opendatacommunities.org/id/metropolitan-district-council/wolverhampton","718321","London Hire Ltd","INV00040857","330.00","Hire of Vehicles","190560471","13/02/2019","Fleet Services","Fleet Management","R3200"
"Wolverhampton City Council","http://opendatacommunities.org/id/metropolitan-district-council/wolverhampton","718321","London Hire Ltd","INV00040856","330.00","Hire of Vehicles","190560470","13/02/2019","Fleet Services","Fleet Management","R3200"
"Wolverhampton City Council","http://opendatacommunities.org/id/metropolitan-district-council/wolverhampton","718321","London Hire Ltd","INV00040860","924.00","Hire of Vehicles","190560474","13/02/2019","Fleet Services","Fleet Management","R3200"
"Wolverhampton City Council","http://opendatacommunities.org/id/metropolitan-district-council/wolverhampton","718349","Dr Shaheen Yousaf Chaudhry","DOLS0119-B","6,516.00","Services - DoLS Doctors Fees","130242964","27/02/2019","Safeguarding","MCA General","R4416"
"Wolverhampton City Council","http://opendatacommunities.org/id/metropolitan-district-council/wolverhampton","718367","Certas Energy UK","1571183","1,506.50","Heating Oil","130242965","06/02/2019","Environmental Maintenance","Ground Maintenance East","R2102"
"Wolverhampton City Council","http://opendatacommunities.org/id/metropolitan-district-council/wolverhampton","718367","Certas Energy UK","1282407","594.60","Heating Oil","130243127","08/02/2019","Waste and Recycling Service","Shaw Road Civic Amenity Site","R2102"
"Wolverhampton City Council","http://opendatacommunities.org/id/metropolitan-district-council/wolverhampton","718367","Certas Energy UK","1533047","59.64","Equipment - Purchase","190559055","08/02/2019","Fleet Services","Fleet Management","R4000"
"Wolverhampton City Council","http://opendatacommunities.org/id/metropolitan-district-council/wolverhampton","718367","Certas Energy UK","1963083","1,235.80","Heating Oil","130242845","27/02/2019","School Planning & Resources","Towers Outdoor Education Centre","R2102"
"Wolverhampton City Council","http://opendatacommunities.org/id/metropolitan-district-council/wolverhampton","718367","Certas Energy UK","1917271","840.18","Equipment - Purchase","190567386","27/02/2019","Fleet Services","Fleet Management","R4000"
"Wolverhampton City Council","http://opendatacommunities.org/id/metropolitan-district-council/wolverhampton","718367","Certas Energy UK","1847435","1,307.91","Heating Oil","130241605","15/02/2019","School Planning & Resources","Towers Outdoor Education Centre","R2102"
"Wolverhampton City Council","http://opendatacommunities.org/id/metropolitan-district-council/wolverhampton","718367","Certas Energy UK","1818148","915.18","Equipment - Purchase","190556526","01/02/2019","Fleet Services","Fleet Management","R4000"
"Wolverhampton City Council","http://opendatacommunities.org/id/metropolitan-district-council/wolverhampton","718367","Certas Energy UK","1859029","513.61","Heating Oil","130241065","06/02/2019","Waste and Recycling Service","Anchor Lane Civic Amenity Site","R2102"
"Wolverhampton City Council","http://opendatacommunities.org/id/metropolitan-district-council/wolverhampton","718367","Certas Energy UK","1907107","1,032.43","Heating Oil","130242256","20/02/2019","Highways Maintenance","Patching","R2102"
"Wolverhampton City Council","http://opendatacommunities.org/id/metropolitan-district-council/wolverhampton","718371","Stefano Nuvoloni","642","500.00","Services - Professional Fees","130245532","27/02/2019","Legal Services","Centralised External Legal Costs","R4400"
"Wolverhampton City Council","http://opendatacommunities.org/id/metropolitan-district-council/wolverhampton","718376","Westbury Health Limited","DA044017 BAKER Chloe","95.13","Services - Professional Fees","130181289","22/02/2019","Strengthening Families","Head of Strengthening Families","R4400"
"Wolverhampton City Council","http://opendatacommunities.org/id/metropolitan-district-council/wolverhampton","718376","Westbury Health Limited","DA044117 FERRIDAY Jack","95.13","Services - Professional Fees","130181290","22/02/2019","Strengthening Families","Head of Strengthening Families","R4400"
"Wolverhampton City Council","http://opendatacommunities.org/id/metropolitan-district-council/wolverhampton","718395","Beyond Curious Ltd","INV-0303","363.75","Marketing \ Non-staff advertising","130240812","08/02/2019","Corporate Communications","Communications & Marketing - General","R4317"
"Wolverhampton City Council","http://opendatacommunities.org/id/metropolitan-district-council/wolverhampton","718395","Beyond Curious Ltd","INV-0305","92.50","Marketing \ Non-staff advertising","130242257","20/02/2019","Corporate Communications","Communications & Marketing - General","R4317"
"Wolverhampton City Council","http://opendatacommunities.org/id/metropolitan-district-council/wolverhampton","718411","NOCN","0000072134","166.67","Exam Expenses (Non-Employee)","130243095","27/02/2019","Adult Education","Education & Training","R4630"
"Wolverhampton City Council","http://opendatacommunities.org/id/metropolitan-district-council/wolverhampton","718411","NOCN","0000072134","333.33","Exam Expenses (Non-Employee)","130243095","27/02/2019","Adult Education","Discretionary Fund","R4630"
"Wolverhampton City Council","http://opendatacommunities.org/id/metropolitan-district-council/wolverhampton","718429","St Bartholomew�s CE Academy Trust","St Bartholomews Academy Final Subject Leader Network payment","10,715.00","Services - Professional Fees","190556580","01/02/2019","School Improvement","School Standards Training","R4400"
"Wolverhampton City Council","http://opendatacommunities.org/id/metropolitan-district-council/wolverhampton","718429","St Bartholomew�s CE Academy Trust","Early Years Autumn term Final Payment and Spring Term Interim Payment","47,805.60","Grant Payments","190561946","15/02/2019","Central Education","Academy Early years","R4700"
"Wolverhampton City Council","http://opendatacommunities.org/id/metropolitan-district-council/wolverhampton","718433","Daniel Booth","00020","160.00","TPP - Maintenance Contractor - General","190567068","27/02/2019","Transportation","Cycling Schemes - Bikeability","R5720"
"Wolverhampton City Council","http://opendatacommunities.org/id/metropolitan-district-council/wolverhampton","718450","Furnace Mill Fishery Ltd","237","5,000.00","R&M - Departmental response (external)","130241422","15/02/2019","Environmental Maintenance","Parks / Open Spaces - Repairs & Maintenance","R2003"
"Wolverhampton City Council","http://opendatacommunities.org/id/metropolitan-district-council/wolverhampton","718460","Lambert Merson Consulting Ltd","020219","233.00","Services - Professional Fees","190565172","22/02/2019","Legal Services","Legal Services","R4400"
"Wolverhampton City Council","http://opendatacommunities.org/id/metropolitan-district-council/wolverhampton","718472","Mars Chocolate UK Ltd","P010219","100.00","Equipment - R & M","130243731","27/02/2019","Catering","Education Catering - General Overheads","R4003"
"Wolverhampton City Council","http://opendatacommunities.org/id/metropolitan-district-council/wolverhampton","718472","Mars Chocolate UK Ltd","98","-130.00","Equipment - R & M","130241831","27/02/2019","Catering","Education Catering - General Overheads","R4003"
"Wolverhampton City Council","http://opendatacommunities.org/id/metropolitan-district-council/wolverhampton","718472","Mars Chocolate UK Ltd","3846","130.00","Equipment - R & M","130241832","27/02/2019","Catering","Education Catering - General Overheads","R4003"
"Wolverhampton City Council","http://opendatacommunities.org/id/metropolitan-district-council/wolverhampton","718490","NCH CONSULTANCY SERVICES LTD","NCHCS190125CWC","1,440.00","Services - Consultants","130242258","20/02/2019","Corporate Asset Management","Strategic Asset Management Team","R4404"
"Wolverhampton City Council","http://opendatacommunities.org/id/metropolitan-district-council/wolverhampton","718490","NCH CONSULTANCY SERVICES LTD","NCHCS181215CWC","3,360.00","Services - Consultants","130238712","01/02/2019","Corporate Asset Management","Strategic Asset Management Team","R4404"
"Wolverhampton City Council","http://opendatacommunities.org/id/metropolitan-district-council/wolverhampton","718499","ENER-G Combined Power Limited","19500267","1,085.65","R&M - Departmental planned (external)","130242259","20/02/2019","Corporate Asset Management","Central Utilities to Recharge","R2001"
"Wolverhampton City Council","http://opendatacommunities.org/id/metropolitan-district-council/wolverhampton","718503","Ove Arup & Partners Ltd","1031184","8,580.00","Services - Professional Fees","130240814","06/02/2019","City Development","Strategic Asset Management - Bilston Town Centre Regen","R4400"
"Wolverhampton City Council","http://opendatacommunities.org/id/metropolitan-district-council/wolverhampton","718503","Ove Arup & Partners Ltd","1031183","5,893.00","External Professional Fees","130240813","06/02/2019","-","GF - LGF Feasibility","C6002"
"Wolverhampton City Council","http://opendatacommunities.org/id/metropolitan-district-council/wolverhampton","718631","Midland Fuel Oil Supplies Ltd","625882","616.46","Heating Oil","190564997","20/02/2019","Corporate Asset Management","Central Utilities to Recharge","R2102"
"Wolverhampton City Council","http://opendatacommunities.org/id/metropolitan-district-council/wolverhampton","718631","Midland Fuel Oil Supplies Ltd","365938","426.32","Heating Oil","190566476","27/02/2019","Corporate Asset Management","Central Utilities to Recharge","R2102"
"Wolverhampton City Council","http://opendatacommunities.org/id/metropolitan-district-council/wolverhampton","718632","Diversiton Limited","2387","518.00","Equipment - Purchase","130240594","06/02/2019","Governance Services","Equalities","R4000"
"Wolverhampton City Council","http://opendatacommunities.org/id/metropolitan-district-council/wolverhampton","718649","Nice To Be Natural","0005DSEM/TR","285.00","Training Expenses","130242667","20/02/2019","Children & Young People In Care","Fostering Team & Allowances","R1650"
"Wolverhampton City Council","http://opendatacommunities.org/id/metropolitan-district-council/wolverhampton","718665","Mr William Douglas-Jones","INVWDJ54","375.00","Services - Professional Fees","130245370","27/02/2019","Licensing","Private Hire Drivers","R4400"
"Wolverhampton City Council","http://opendatacommunities.org/id/metropolitan-district-council/wolverhampton","718677","NJW Limited","4378","32,250.00","Computing - Purchase of Software","130242525","27/02/2019","Corporate Asset Management","Assets Service Transformation Programme","R4531"
"Wolverhampton City Council","http://opendatacommunities.org/id/metropolitan-district-council/wolverhampton","718680","Gails Blinds Ltd","230119","2,405.00","Equipment - Purchase","130241808","20/02/2019","Older People Provider Services","Older People Provider Management","R4000"
"Wolverhampton City Council","http://opendatacommunities.org/id/metropolitan-district-council/wolverhampton","718702","The National Teaching and Advisory Service","9831919","1,008.00","TPP - Alternative Provision of Education","130243565","13/02/2019","Special Educational Needs","Post 16 SEN Provision","R5037"
"Wolverhampton City Council","http://opendatacommunities.org/id/metropolitan-district-council/wolverhampton","718702","The National Teaching and Advisory Service","9832338","881.00","TPP - Alternative Provision of Education","130243566","13/02/2019","Special Educational Needs","Post 16 SEN Provision","R5037"
"Wolverhampton City Council","http://opendatacommunities.org/id/metropolitan-district-council/wolverhampton","718729","National Assoc of Virtual Sch Heads","INV-0144","1,500.00","Training Expenses","130244261","15/02/2019","Inclusion Support","Pupil Premium","R1650"
"Wolverhampton City Council","http://opendatacommunities.org/id/metropolitan-district-council/wolverhampton","718746","Helping Hands Tuition","003","75.00","Services - Professional Fees","130241423","13/02/2019","Inclusion Support","Pupil Premium","R4400"
"Wolverhampton City Council","http://opendatacommunities.org/id/metropolitan-district-council/wolverhampton","718754","Liddell Electrical Distributors","8054174-03","694.44","Materials","130245543","27/02/2019","Highways Maintenance","Planned Highways Maintenance","R4007"
"Wolverhampton City Council","http://opendatacommunities.org/id/metropolitan-district-council/wolverhampton","718754","Liddell Electrical Distributors","8054815-01","13.35","Materials","130245545","27/02/2019","Street Lighting","Street Lighting Maintenance","R4007"
"Wolverhampton City Council","http://opendatacommunities.org/id/metropolitan-district-council/wolverhampton","718754","Liddell Electrical Distributors","8052933-00","291.11","Equipment - Purchase","130245542","27/02/2019","Street Lighting","Street Lighting Maintenance","R4000"
"Wolverhampton City Council","http://opendatacommunities.org/id/metropolitan-district-council/wolverhampton","718754","Liddell Electrical Distributors","8054367-00","15.36","Materials","130245544","27/02/2019","Street Lighting","Street Lighting Maintenance","R4007"
"Wolverhampton City Council","http://opendatacommunities.org/id/metropolitan-district-council/wolverhampton","718771","Forest Fuels Limited","INV 361279","359.15","Solid Fuel","190558535","06/02/2019","Schools","St Luke�s Church of England Aided Primary School","R2103"
"Wolverhampton City Council","http://opendatacommunities.org/id/metropolitan-district-council/wolverhampton","718771","Forest Fuels Limited","INV 356473","328.99","Solid Fuel","190558532","06/02/2019","Schools","St Luke�s Church of England Aided Primary School","R2103"
"Wolverhampton City Council","http://opendatacommunities.org/id/metropolitan-district-council/wolverhampton","718771","Forest Fuels Limited","INV 361667","33.42","Solid Fuel","190558536","06/02/2019","Schools","St Luke�s Church of England Aided Primary School","R2103"
"Wolverhampton City Council","http://opendatacommunities.org/id/metropolitan-district-council/wolverhampton","718771","Forest Fuels Limited","INV 359986","349.55","Solid Fuel","190558534","06/02/2019","Schools","St Luke�s Church of England Aided Primary School","R2103"
"Wolverhampton City Council","http://opendatacommunities.org/id/metropolitan-district-council/wolverhampton","718771","Forest Fuels Limited","INV 357054","450.49","Solid Fuel","190558533","06/02/2019","Schools","St Luke�s Church of England Aided Primary School","R2103"
"Wolverhampton City Council","http://opendatacommunities.org/id/metropolitan-district-council/wolverhampton","718771","Forest Fuels Limited","CRN 904378","-251.59","Solid Fuel","190558537","06/02/2019","Schools","St Luke�s Church of England Aided Primary School","R2103"
"Wolverhampton City Council","http://opendatacommunities.org/id/metropolitan-district-council/wolverhampton","718771","Forest Fuels Limited","INV 364205","226.30","Solid Fuel","190560534","13/02/2019","Schools","St Luke�s Church of England Aided Primary School","R2103"
"Wolverhampton City Council","http://opendatacommunities.org/id/metropolitan-district-council/wolverhampton","718805","Count-Up Limited","31200","142.95","Equipment - Purchase","130242668","27/02/2019","Customer Services","City Direct","R4000"
"Wolverhampton City Council","http://opendatacommunities.org/id/metropolitan-district-council/wolverhampton","718837","East Park Academy","Additional Early Years Deprivation Payment","12,820.50","Grant Payments","190563519","20/02/2019","Central Education","Academy Early years","R4700"
"Wolverhampton City Council","http://opendatacommunities.org/id/metropolitan-district-council/wolverhampton","718837","East Park Academy","Early Years Autumn term Final Payment and Spring Term Interim Payment","55,082.44","Grant Payments","190561946","15/02/2019","Central Education","Academy Early years","R4700"
"Wolverhampton City Council","http://opendatacommunities.org/id/metropolitan-district-council/wolverhampton","718838","Manor Multi Academy Trust T/A Hill Avenue Academy","Early Years Autumn term Final Payment and Spring Term Interim Payment","24,120.90","Grant Payments","190561946","15/02/2019","Central Education","Academy Early years","R4700"
"Wolverhampton City Council","http://opendatacommunities.org/id/metropolitan-district-council/wolverhampton","718894","Sam Mace","27032131","50.00","Services - Professional Fees","130242260","20/02/2019","Visitor Economy","Art Galleries - Schools Art SLA Service","R4400"
"Wolverhampton City Council","http://opendatacommunities.org/id/metropolitan-district-council/wolverhampton","718894","Sam Mace","27032133","75.00","Services - Professional Fees","130242261","20/02/2019","Visitor Economy","Art Galleries - Schools Art SLA Service","R4400"
"Wolverhampton City Council","http://opendatacommunities.org/id/metropolitan-district-council/wolverhampton","718894","Sam Mace","27032135","75.00","Services - Professional Fees","130243733","13/02/2019","Visitor Economy","Art Galleries - Schools Art SLA Service","R4400"
"Wolverhampton City Council","http://opendatacommunities.org/id/metropolitan-district-council/wolverhampton","718894","Sam Mace","27032134","112.50","Services - Professional Fees","130243732","13/02/2019","Visitor Economy","Art Galleries - Schools Art SLA Service","R4400"
"Wolverhampton City Council","http://opendatacommunities.org/id/metropolitan-district-council/wolverhampton","718894","Sam Mace","27032132","300.00","Services - Professional Fees","130241809","20/02/2019","Visitor Economy","Curatorial - Cultural Learning","R4400"
"Wolverhampton City Council","http://opendatacommunities.org/id/metropolitan-district-council/wolverhampton","718901","iGene London Ltd","IGE/0544","2,250.00","Services - Professional Fees","130240446","06/02/2019","Public Service Reform","Coroners Service","R4400"
"Wolverhampton City Council","http://opendatacommunities.org/id/metropolitan-district-council/wolverhampton","718909","Sodexo Motivation Solutions UK Ltd","81034828","875.00","Computing - Licences","130241424","06/02/2019","Human Resources","Salary Sacrifice Schemes","R4535"
